{"text_format":"1","workbook":"xlsx","n_sheets":6,"sheets":["MAIN PAGE","Cost analysis","Language-Currency","Calculation values","Listenwerte","Info"],"not_rendered":{"charts":2,"images":9,"macros":1,"external_links":0,"defined_names":3,"comments":0,"pivot_tables":0},"unopened":[],"bounds":{"document_bytes":16777216,"sheet_cells":100000,"rows_first":2000,"rows_last":500,"rows_between":2000,"halvings":0,"cell_chars":16384,"cell_head_chars":4096},"cells_cut":0,"cells_raw":0,"read":"whole","date_system":"1900"}

{"sheet":"MAIN PAGE","index":0,"n_rows":145,"n_cols":175,"rows_kept":145,"cut":false,"hidden":false,"merged":[[41,170,42,170],[130,15,130,32],[130,33,130,50],[130,51,130,68],[128,70,128,77],[129,70,129,77],[130,70,130,77],[128,15,128,32],[128,33,128,50],[128,51,128,68],[129,15,129,32],[129,33,129,50],[129,51,129,68],[97,1,97,18],[97,20,97,78],[98,1,98,18],[98,20,98,78],[100,1,100,18],[100,20,100,78],[101,1,101,18],[101,20,101,78],[73,3,73,35],[68,1,68,35],[68,37,68,50],[13,1,13,78],[15,1,15,54],[91,37,91,50],[91,51,91,64],[91,65,91,78],[92,37,92,50],[92,51,92,64],[92,65,92,78],[38,65,38,78],[20,1,20,54],[20,56,20,66],[20,68,20,78],[22,1,22,54],[38,1,38,35],[24,1,24,54],[24,56,24,66],[24,68,24,78],[25,1,25,54],[25,56,25,66],[25,68,25,78],[27,1,27,54],[27,56,27,66],[27,68,27,78],[15,56,15,66],[26,1,26,54],[26,56,26,66],[26,68,26,78],[60,37,60,50],[60,65,60,78],[62,3,62,35],[62,37,62,50],[62,51,62,64],[62,65,62,78],[91,3,91,35],[92,3,92,35],[22,56,22,66],[22,68,22,78],[23,1,23,54],[23,56,23,66],[23,68,23,78],[45,3,45,35],[45,37,45,50],[45,51,45,64],[45,65,45,78],[46,4,46,35],[46,37,46,50],[46,51,46,64],[46,65,46,78],[44,3,44,35],[44,37,44,50],[44,51,44,64],[44,65,44,78],[90,51,90,64],[90,65,90,78],[85,3,85,35],[85,37,85,50],[85,51,85,64],[1,56,1,66],[1,68,1,78],[4,1,4,78],[5,1,5,78],[11,1,11,18],[10,1,10,18],[8,1,8,18],[7,1,7,18],[7,20,7,78],[8,20,8,78],[10,20,10,78],[11,20,11,78],[1,1,1,54],[15,68,15,78],[17,1,17,54],[17,56,17,78],[40,1,40,35],[40,37,40,50],[40,51,40,64],[40,65,40,78],[42,2,42,35],[42,37,42,50],[42,51,42,64],[42,65,42,78],[19,1,19,54],[19,56,19,66],[19,68,19,78],[29,1,29,78],[38,37,38,50],[38,51,38,64],[31,51,31,64],[32,51,32,64],[31,37,32,50],[31,65,32,78],[21,1,21,54],[21,56,21,66],[21,68,21,78],[85,65,85,78],[86,4,86,35],[86,37,86,50],[86,51,86,64],[86,65,86,78],[87,4,87,35],[87,37,87,50],[87,51,87,64],[87,65,87,78],[88,4,88,35],[88,37,88,50],[88,51,88,64],[88,65,88,78],[90,3,90,35],[47,4,47,35],[47,37,47,50],[47,51,47,64],[47,65,47,78],[63,51,63,64],[48,4,48,35],[48,37,48,50],[48,51,48,64],[48,65,48,78],[50,3,50,35],[50,37,50,50],[50,51,50,64],[50,65,50,78],[51,3,51,35],[51,37,51,50],[51,51,51,64],[51,65,51,78],[63,65,63,78],[60,4,60,35],[63,37,63,50],[60,51,60,64],[52,3,52,35],[54,2,54,35],[54,37,54,50],[54,51,54,64],[54,65,54,78],[52,37,52,50],[52,51,52,64],[52,65,52,78],[59,51,59,64],[59,65,59,78],[63,3,63,35],[79,37,79,50],[79,51,79,64],[79,65,79,78],[75,37,75,50],[75,51,75,64],[64,3,64,35],[64,37,64,50],[64,51,64,64],[64,65,64,78],[75,65,75,78],[76,37,76,50],[76,51,76,64],[76,65,76,78],[73,37,73,50],[73,51,73,64],[73,65,73,78],[74,65,74,78],[72,51,72,64],[72,65,72,78],[70,37,70,50],[70,2,70,35],[68,51,68,64],[68,65,68,78],[72,37,72,50],[132,1,132,78],[134,1,134,78],[56,3,56,35],[56,37,56,50],[56,51,56,64],[56,65,56,78],[57,3,57,35],[57,37,57,50],[57,51,57,64],[57,65,57,78],[58,4,58,35],[58,37,58,50],[58,51,58,64],[58,65,58,78],[65,3,65,35],[65,37,65,50],[65,51,65,64],[65,65,65,78],[59,4,59,35],[59,37,59,50],[103,1,103,78],[70,65,70,78],[82,2,82,35],[78,3,78,35],[80,37,80,50],[124,32,124,51],[118,12,119,31],[120,12,120,31],[121,12,121,31],[122,12,122,31],[124,12,124,31],[118,52,119,71],[120,52,120,71],[121,52,121,71],[122,52,122,71],[124,52,124,71],[118,32,118,51],[119,32,119,51],[120,32,120,51],[121,32,121,51],[122,32,122,51],[123,52,123,71],[80,51,80,64],[93,3,93,35],[93,37,93,50],[93,51,93,64],[93,65,93,78],[90,37,90,50],[17,80,19,84],[84,3,84,35],[84,37,84,50],[84,51,84,64],[84,65,84,78],[70,51,70,64],[5,89,5,92],[8,87,9,92],[15,87,16,92],[18,87,19,92],[79,3,79,35],[72,3,72,35],[76,4,76,35],[75,4,75,35],[80,65,80,78],[74,37,74,50],[74,51,74,64],[74,4,74,35],[78,37,78,50],[78,51,78,64],[78,65,78,78],[82,37,82,50],[82,51,82,64],[82,65,82,78]]}
[]
[null,{"$f":"'Language-Currency'!A25","v":"Currency"},null,null,null,null,null,null,null,null,null,null,null,null,null,null,null,null,null,null,null,null,null,null,null,null,null,null,null,null,null,null,null,null,null,null,null,null,null,null,null,null,null,null,null,null,null,null,null,null,null,null,null,null,null,null,"EUR"]
[]
[null,null,{"$f":"CONCATENATE('Language-Currency'!A26,\" \",Listenwerte!B2)","v":"Version 1.0.1"},null,null,null,null,null,null,null,null,null,null,null,null,null,null,null,null,null,null,null,null,null,null,null,null,null,null,null,null,null,null,null,null,null,null,null,null,null,null,null,null,null,null,null,null,null,null,null,null,null,null,null,null,null,null,null,null,null,null,null,null,null,null,null,null,null,null,null,null,null,null,null,null,null,null,{"$f":"CONCATENATE('Language-Currency'!A28,\" 1 \",'Language-Currency'!A29,\" 2\")","v":"Page 1 of 2"},null,null,null,null,null,null,null,null,null,{"$f":"'Language-Currency'!A105","v":"Full screen view"},null,null,null,null,null,null,null,null,null,null,null,null,null,null,null,null,null,null,null,null,null,null,null,null,null,null,null,null,null,null,null,null,null,null,null,null,null,null,null,null,null,null,null,null,null,null,null,null,null,null,null,null,null,null,null,null,null,null,null,null,null,null,null,null,null,null,null,null,null,null,null,null,null,null,null,null,null,null,null,null,{"$f":"'Language-Currency'!A99","v":"To exit: ESC-key"}]
[null,"  Belimo Savings Estimator"]
[null,{"$f":"CONCATENATE(\"  \",'Language-Currency'!A30)","v":"  Investment costs 4-pipe system"},null,null,null,null,null,null,null,null,null,null,null,null,null,null,null,null,null,null,null,null,null,null,null,null,null,null,null,null,null,null,null,null,null,null,null,null,null,null,null,null,null,null,null,null,null,null,null,null,null,null,null,null,null,null,null,null,null,null,null,null,null,null,null,null,null,null,null,null,null,null,null,null,null,null,null,null,null,null,null,null,null,null,null,null,null,null,{"$f":"CONCATENATE('Language-Currency'!A27,\" \")","v":"Language "},"English",null,null,null,null,null,null,null,null,null,null,null,null,null,null,null,null,null,null,null,null,null,null,null,null,null,null,null,null,null,null,null,null,null,null,null,null,null,null,null,null,null,null,null,null,null,null,null,null,null,null,null,null,null,null,null,null,null,null,null,null,null,null,null,null,null,null,null,null,null,null,{"$f":"CL6","v":"English"}]
[]
[null,{"$f":"'Language-Currency'!A31","v":"Project"}]
[null,{"$f":"'Language-Currency'!A32","v":"Version"},null,null,null,null,null,null,null,null,null,null,null,null,null,null,null,null,null,null,null,null,null,null,null,null,null,null,null,null,null,null,null,null,null,null,null,null,null,null,null,null,null,null,null,null,null,null,null,null,null,null,null,null,null,null,null,null,null,null,null,null,null,null,null,null,null,null,null,null,null,null,null,null,null,null,null,null,null,null,null,null,null,null,null,null,null,{"$f":"'Language-Currency'!A106","v":"Quick reference costs"}]
[]
[null,{"$f":"'Language-Currency'!A33","v":"Creator"}]
[null,{"$f":"'Language-Currency'!A41","v":"Processing date"},null,null,null,null,null,null,null,null,null,null,null,null,null,null,null,null,null,null,null,null,null,null,null,null,null,null,null,null,null,null,null,null,null,null,null,null,null,null,null,null,null,null,null,null,null,null,null,null,null,null,null,null,null,null,null,null,null,null,null,null,null,null,null,null,null,null,null,null,null,null,null,null,null,null,null,null,null,null,null,null,null,null,null,null,null,{"$f":"'Language-Currency'!A107","v":"Print"}]
[null,null,null,null,null,null,null,null,null,null,null,null,null,null,null,null,null,null,null,null,null,null,null,null,null,null,null,null,null,null,null,null,null,null,null,null,null,null,null,null,null,null,null,null,null,null,null,null,null,null,null,null,null,null,null,null,null,null,null,null,null,null,null,null,null,null,null,null,null,null,null,null,null,null,null,null,null,null,null,null,null,null,null,null,null,null,null,null,null,null,null,null,null,null,null,null,null,null,null,null,null,null,null,null,null,null,null,null,null,null,null,null,null,null,null,null,null,null,null,null,null,null,null,null,null,null,null,null,null,null,null,null,null,null,null,null,null,null,null,null,null,null,null,null,null,null,null,null,null,null,null,null,null,null,null,null,null,null,null,null,null,null,null,null,null,null,null,null,{"$f":"'Language-Currency'!A100","v":"PDF-File will be saved in the same directory as the excel file…"},null,null,null,null,null,{"$f":"'Calculation values'!BE24","v":"EUR"}]
[null,{"$f":"CONCATENATE(\"  \",'Language-Currency'!A42)","v":"  Calculation basis"},null,null,null,null,null,null,null,null,null,null,null,null,null,null,null,null,null,null,null,null,null,null,null,null,null,null,null,null,null,null,null,null,null,null,null,null,null,null,null,null,null,null,null,null,null,null,null,null,null,null,null,null,null,null,null,null,null,null,null,null,null,null,null,null,null,null,null,null,null,null,null,null,null,null,null,null,null,null,null,null,null,null,null,null,null,{"$f":"'Language-Currency'!A108","v":"Create PDF"},null,null,null,null,null,null,null,null,null,null,null,null,null,null,null,null,null,null,null,null,null,null,null,null,null,null,null,null,null,null,null,null,null,null,null,null,null,null,null,null,null,null,null,null,null,null,null,null,null,null,null,null,null,null,null,null,null,null,null,null,null,null,null,null,null,null,null,null,null,null,null,null,null,null,null,null,null,null,null,null,"Dateiname für PDF:",null,{"$f":"CONCATENATE(U8,\"_\",U9)","v":"_"},null,null,null,"Beispielwerte aus Calculation values (automatische Übernahme):"]
[]
[null,{"$f":"'Language-Currency'!A43","v":"Number of heat exchangers (Heating & Cooling)"},null,null,null,null,null,null,null,null,null,null,null,null,null,null,null,null,null,null,null,null,null,null,null,null,null,null,null,null,null,null,null,null,null,null,null,null,null,null,null,null,null,null,null,null,null,null,null,null,null,null,null,null,null,null,50,null,null,null,null,null,null,null,null,null,null,null,{"$f":"'Language-Currency'!A58","v":"pieces"},null,null,null,null,null,null,null,null,null,null,null,null,null,null,null,null,null,null,{"$f":"'Language-Currency'!A109","v":"Delete entries"},null,null,null,null,null,null,null,null,null,null,null,null,null,null,null,null,null,null,null,null,null,null,null,null,null,null,null,null,null,null,null,null,null,null,null,null,null,null,null,null,null,null,null,null,null,null,null,null,null,null,null,null,null,null,null,null,null,null,null,null,null,null,null,null,null,null,null,null,null,null,null,null,null,null,null,null,null,null,null,null,null,null,null,null,null,null,{"$f":"'Calculation values'!BE26","v":50}]
[]
[null,{"$f":"'Language-Currency'!A44","v":"Type of installation"},null,null,null,null,null,null,null,null,null,null,null,null,null,null,null,null,null,null,null,null,null,null,null,null,null,null,null,null,null,null,null,null,null,null,null,null,null,null,null,null,null,null,null,null,null,null,null,null,null,null,null,null,null,null,"Existing construction / one-time",null,null,null,null,null,null,null,null,null,null,null,null,null,null,null,null,null,null,null,null,null,null,null,{"$f":"IF(Listenwerte!I12=0,CONCATENATE(\"« \",'Language-Currency'!A134),\" \")","v":" "}]
[null,null,null,null,null,null,null,null,null,null,null,null,null,null,null,null,null,null,null,null,null,null,null,null,null,null,null,null,null,null,null,null,null,null,null,null,null,null,null,null,null,null,null,null,null,null,null,null,null,null,null,null,null,null,null,null,null,null,null,null,null,null,null,null,null,null,null,null,null,null,null,null,null,null,null,null,null,null,null,null,null,null,null,null,null,null,null,{"$f":"'Language-Currency'!A110","v":"Use of example values"}]
[null,{"$f":"'Language-Currency'!A45","v":"Average distance between control cabinet and junction box"},null,null,null,null,null,null,null,null,null,null,null,null,null,null,null,null,null,null,null,null,null,null,null,null,null,null,null,null,null,null,null,null,null,null,null,null,null,null,null,null,null,null,null,null,null,null,null,null,null,null,null,null,null,null,25,null,null,null,null,null,null,null,null,null,null,null,{"$f":"'Language-Currency'!A59","v":"meters"},null,null,null,null,null,null,null,null,null,null,null,null,null,null,null,null,null,null,null,null,null,null,null,null,null,null,null,null,null,null,null,null,null,null,null,null,null,null,null,null,null,null,null,null,null,null,null,null,null,null,null,null,null,null,null,null,null,null,null,null,null,null,null,null,null,null,null,null,null,null,null,null,null,null,null,null,null,null,null,null,null,null,null,null,null,null,null,null,null,null,null,null,null,null,null,null,null,null,null,null,null,null,null,null,null,{"$f":"'Calculation values'!BE28","v":25}]
[null,{"$f":"CONCATENATE('Language-Currency'!A49,\" (\",'Language-Currency'!A37,\")\")","v":"Cost of a 2-way valve including actuator (modulating)"},null,null,null,null,null,null,null,null,null,null,null,null,null,null,null,null,null,null,null,null,null,null,null,null,null,null,null,null,null,null,null,null,null,null,null,null,null,null,null,null,null,null,null,null,null,null,null,null,null,null,null,null,null,null,36,null,null,null,null,null,null,null,null,null,null,null,{"$f":"CONCATENATE(BE2,\"/\",'Language-Currency'!A57)","v":"EUR/piece"},null,null,null,null,null,null,null,null,null,null,null,null,null,null,null,null,null,null,null,null,null,null,null,null,null,null,null,null,null,null,null,null,null,null,null,null,null,null,null,null,null,null,null,null,null,null,null,null,null,null,null,null,null,null,null,null,null,null,null,null,null,null,null,null,null,null,null,null,null,null,null,null,null,null,null,null,null,null,null,null,null,null,null,null,null,null,null,null,null,null,null,null,null,null,null,null,null,null,null,null,null,null,null,null,null,{"$f":"'Calculation values'!BE29","v":36}]
[null,{"$f":"CONCATENATE('Language-Currency'!A49,\" (\",'Language-Currency'!A36,\")\")","v":"Cost of a 2-way valve including actuator (open-close)"},null,null,null,null,null,null,null,null,null,null,null,null,null,null,null,null,null,null,null,null,null,null,null,null,null,null,null,null,null,null,null,null,null,null,null,null,null,null,null,null,null,null,null,null,null,null,null,null,null,null,null,null,null,null,32,null,null,null,null,null,null,null,null,null,null,null,{"$f":"BQ21","v":"EUR/piece"},null,null,null,null,null,null,null,null,null,null,null,null,null,null,null,null,null,null,{"$f":"'Language-Currency'!A115","v":"Information"}]
[null,{"$f":"'Language-Currency'!A50","v":"Cost of a 3-way valve including actuator"},null,null,null,null,null,null,null,null,null,null,null,null,null,null,null,null,null,null,null,null,null,null,null,null,null,null,null,null,null,null,null,null,null,null,null,null,null,null,null,null,null,null,null,null,null,null,null,null,null,null,null,null,null,null,41,null,null,null,null,null,null,null,null,null,null,null,{"$f":"BQ21","v":"EUR/piece"},null,null,null,null,null,null,null,null,null,null,null,null,null,null,null,null,null,null,null,null,null,null,null,null,null,null,null,null,null,null,null,null,null,null,null,null,null,null,null,null,null,null,null,null,null,null,null,null,null,null,null,null,null,null,null,null,null,null,null,null,null,null,null,null,null,null,null,null,null,null,null,null,null,null,null,null,null,null,null,null,null,null,null,null,null,null,null,null,null,null,null,null,null,null,null,null,null,null,null,null,null,null,null,null,null,{"$f":"'Calculation values'!BE31","v":41}]
[null,{"$f":"'Language-Currency'!A51","v":"Cost of a 6-way valve including actuator"},null,null,null,null,null,null,null,null,null,null,null,null,null,null,null,null,null,null,null,null,null,null,null,null,null,null,null,null,null,null,null,null,null,null,null,null,null,null,null,null,null,null,null,null,null,null,null,null,null,null,null,null,null,null,165,null,null,null,null,null,null,null,null,null,null,null,{"$f":"BQ21","v":"EUR/piece"},null,null,null,null,null,null,null,null,null,null,null,null,null,null,null,null,null,null,null,null,null,null,null,null,null,null,null,null,null,null,null,null,null,null,null,null,null,null,null,null,null,null,null,null,null,null,null,null,null,null,null,null,null,null,null,null,null,null,null,null,null,null,null,null,null,null,null,null,null,null,null,null,null,null,null,null,null,null,null,null,null,null,null,null,null,null,null,null,null,null,null,null,null,null,null,null,null,null,null,null,null,null,null,null,null,{"$f":"'Calculation values'!BE32","v":165}]
[null,{"$f":"'Language-Currency'!A52","v":"Cost of a physical data point"},null,null,null,null,null,null,null,null,null,null,null,null,null,null,null,null,null,null,null,null,null,null,null,null,null,null,null,null,null,null,null,null,null,null,null,null,null,null,null,null,null,null,null,null,null,null,null,null,null,null,null,null,null,null,50,null,null,null,null,null,null,null,null,null,null,null,{"$f":"BQ21","v":"EUR/piece"},null,null,null,null,null,null,null,null,null,null,null,null,null,null,null,null,null,null,null,null,null,null,null,null,null,null,null,null,null,null,null,null,null,null,null,null,null,null,null,null,null,null,null,null,null,null,null,null,null,null,null,null,null,null,null,null,null,null,null,null,null,null,null,null,null,null,null,null,null,null,null,null,null,null,null,null,null,null,null,null,null,null,null,null,null,null,null,null,null,null,null,null,null,null,null,null,null,null,null,null,null,null,null,null,null,{"$f":"'Calculation values'!BE33","v":50}]
[null,{"$f":"'Language-Currency'!A53","v":"Cable costs"},null,null,null,null,null,null,null,null,null,null,null,null,null,null,null,null,null,null,null,null,null,null,null,null,null,null,null,null,null,null,null,null,null,null,null,null,null,null,null,null,null,null,null,null,null,null,null,null,null,null,null,null,null,null,0.19,null,null,null,null,null,null,null,null,null,null,null,{"$f":"CONCATENATE(BE2,\"/\",'Language-Currency'!A61)","v":"EUR/meter"},null,null,null,null,null,null,null,null,null,null,null,null,null,null,null,null,null,null,null,null,null,null,null,null,null,null,null,null,null,null,null,null,null,null,null,null,null,null,null,null,null,null,null,null,null,null,null,null,null,null,null,null,null,null,null,null,null,null,null,null,null,null,null,null,null,null,null,null,null,null,null,null,null,null,null,null,null,null,null,null,null,null,null,null,null,null,null,null,null,null,null,null,null,null,null,null,null,null,null,null,null,null,null,null,null,{"$f":"'Calculation values'!BE34","v":0.19}]
[null,{"$f":"'Language-Currency'!A54","v":"Cost of a junction box"},null,null,null,null,null,null,null,null,null,null,null,null,null,null,null,null,null,null,null,null,null,null,null,null,null,null,null,null,null,null,null,null,null,null,null,null,null,null,null,null,null,null,null,null,null,null,null,null,null,null,null,null,null,null,9,null,null,null,null,null,null,null,null,null,null,null,{"$f":"BQ21","v":"EUR/piece"},null,null,null,null,null,null,null,null,null,null,null,null,null,null,null,null,null,null,null,null,null,null,null,null,null,null,null,null,null,null,null,null,null,null,null,null,null,null,null,null,null,null,null,null,null,null,null,null,null,null,null,null,null,null,null,null,null,null,null,null,null,null,null,null,null,null,null,null,null,null,null,null,null,null,null,null,null,null,null,null,null,null,null,null,null,null,null,null,null,null,null,null,null,null,null,null,null,null,"Grafik",null,null,null,null,null,null,{"$f":"'Calculation values'!BE35","v":9}]
[null,{"$f":"'Language-Currency'!A56","v":"Hourly rate installation work"},null,null,null,null,null,null,null,null,null,null,null,null,null,null,null,null,null,null,null,null,null,null,null,null,null,null,null,null,null,null,null,null,null,null,null,null,null,null,null,null,null,null,null,null,null,null,null,null,null,null,null,null,null,null,40,null,null,null,null,null,null,null,null,null,null,null,{"$f":"CONCATENATE(BE2,\"/\",'Language-Currency'!A62)","v":"EUR/hour"},null,null,null,null,null,null,null,null,null,null,null,null,null,null,null,null,null,null,null,null,null,null,null,null,null,null,null,null,null,null,null,null,null,null,null,null,null,null,null,null,null,null,null,null,null,null,null,null,null,null,null,null,null,null,null,null,null,null,null,null,null,null,null,null,null,null,null,null,null,null,null,null,null,null,null,null,null,null,null,null,null,null,null,null,null,null,null,null,null,null,null,null,null,null,null,null,null,null,null,null,null,null,null,null,null,{"$f":"'Calculation values'!BE36","v":40}]
[null,null,null,null,null,null,null,null,null,null,null,null,null,null,null,null,null,null,null,null,null,null,null,null,null,null,null,null,null,null,null,null,null,null,null,null,null,null,null,null,null,null,null,null,null,null,null,null,null,null,null,null,null,null,null,null,null,null,null,null,null,null,null,null,null,null,null,null,null,null,null,null,null,null,null,null,null,null,null,null,null,null,null,null,null,null,null,null,null,null,null,null,null,null,null,null,null,null,null,null,null,null,null,null,null,null,null,null,null,null,null,null,null,null,null,null,null,null,null,null,null,null,null,null,null,null,null,null,null,null,null,null,null,null,null,null,null,null,null,null,null,null,null,null,null,null,null,null,null,null,null,null,null,null,null,null,null,null,null,null,null,null,null,null,null,null,null,null,"4 x 2W","2 x 2W","1 x 6W"]
[null,{"$f":"CONCATENATE(\"  \",'Language-Currency'!A71)","v":"  Estimate of costs"},null,null,null,null,null,null,null,null,null,null,null,null,null,null,null,null,null,null,null,null,null,null,null,null,null,null,null,null,null,null,null,null,null,null,null,null,null,null,null,null,null,null,null,null,null,null,null,null,null,null,null,null,null,null,null,null,null,null,null,null,null,null,null,null,null,null,null,null,null,null,null,null,null,null,null,null,null,null,null,null,null,null,null,null,null,null,null,null,null,null,null,null,null,null,null,null,null,null,null,null,null,null,null,null,null,null,null,null,null,null,null,null,null,null,null,null,null,null,null,null,null,null,null,null,null,null,null,null,null,null,null,null,null,null,null,null,null,null,null,null,null,null,null,null,null,null,null,null,null,null,null,null,null,null,null,null,null,null,null,null,null,null,null,null,null,null,null,"3 x 2W"]
[]
[null,null,null,null,null,null,null,null,null,null,null,null,null,null,null,null,null,null,null,null,null,null,null,null,null,null,null,null,null,null,null,null,null,null,null,null,null,{"$f":"CONCATENATE(\"4 \",'Language-Currency'!A75,\" \",'Language-Currency'!A72)","v":"4 pcs. 2-way"},null,null,null,null,null,null,null,null,null,null,null,null,null,{"$f":"CONCATENATE(\"2 \",'Language-Currency'!A75,\" \",'Language-Currency'!A72)","v":"2 pcs. 2-way"},null,null,null,null,null,null,null,null,null,null,null,null,null,{"$f":"CONCATENATE(\"1 \",'Language-Currency'!A75,\" \",'Language-Currency'!A74)","v":"1 pcs. 6-way"},null,null,null,null,null,null,null,null,null,null,null,null,null,null,null,null,null,null,null,null,null,null,null,null,null,null,null,null,null,null,null,null,null,null,null,null,null,null,null,null,null,null,null,null,null,null,null,null,null,null,null,null,null,null,null,null,null,null,null,null,null,null,null,null,null,null,null,null,null,null,null,null,null,null,null,null,null,null,null,null,null,null,null,null,null,null,null,null,null,null,null,null,null,null,null,null,null,null,null,null,null,{"$f":"D45","v":"Costs of all valves and actuators"},{"$f":"AL73","v":6800},{"$f":"IF(OR(BE21=0,BE23=0),0,AZ73)","v":5650},{"$f":"BN73","v":8250}]
[null,null,null,null,null,null,null,null,null,null,null,null,null,null,null,null,null,null,null,null,null,null,null,null,null,null,null,null,null,null,null,null,null,null,null,null,null,null,null,null,null,null,null,null,null,null,null,null,null,null,null,{"$f":"CONCATENATE(\"1 \",'Language-Currency'!A75,\" \",'Language-Currency'!A73)","v":"1 pcs. 3-way"},null,null,null,null,null,null,null,null,null,null,null,null,null,null,null,null,null,null,null,null,null,null,null,null,null,null,null,null,null,null,null,null,null,null,null,null,null,null,null,null,null,null,null,null,null,null,null,null,null,null,null,null,null,null,null,null,null,null,null,null,null,null,null,null,null,null,null,null,null,null,null,null,null,null,null,null,null,null,null,null,null,null,null,null,null,null,null,null,null,null,null,null,null,null,null,null,null,null,null,null,null,null,null,null,null,null,null,null,null,null,null,null,null,null,null,{"$f":"D51","v":"Costs of data points, cable, junction boxes"},{"$f":"IF(FM32=0,0,AL79)","v":12750},{"$f":"IF(FN32=0,0,AZ79)","v":9562.5},{"$f":"IF(FO32=0,0,BN79)","v":3187.5}]
[null,null,null,null,null,null,null,null,null,null,null,null,null,null,null,null,null,null,null,null,null,null,null,null,null,null,null,null,null,null,null,null,null,null,null,null,null,null,null,null,null,null,null,null,null,null,null,null,null,null,null,null,null,null,null,null,null,null,null,null,null,null,null,null,null,null,null,null,null,null,null,null,null,null,null,null,null,null,null,null,null,null,null,null,null,null,null,null,null,null,null,null,null,null,null,null,null,null,null,null,null,null,null,null,null,null,null,null,null,null,null,null,null,null,null,null,null,null,null,null,null,null,null,null,null,null,null,null,null,null,null,null,null,null,null,null,null,null,null,null,null,null,null,null,null,null,null,null,null,null,null,null,null,null,null,null,null,null,null,null,null,null,null,null,null,null,null,{"$f":"D57","v":"Costs of valve installation"},{"$f":"IF(FM32=0,0,AL85)","v":10080},{"$f":"IF(FN32=0,0,AZ85)","v":8280},{"$f":"IF(FO32=0,0,BN85)","v":6480}]
[null,null,null,null,null,null,null,null,null,null,null,null,null,null,null,null,null,null,null,null,null,null,null,null,null,null,null,null,null,null,null,null,null,null,null,null,null,null,null,null,null,null,null,null,null,null,null,null,null,null,null,null,null,null,null,null,null,null,null,null,null,null,null,null,null,null,null,null,null,null,null,null,null,null,null,null,null,null,null,null,null,null,null,null,null,null,null,{"$f":"'Language-Currency'!A114","v":"Page up"},null,null,null,null,null,null,null,null,null,null,null,null,null,null,null,null,null,null,null,null,null,null,null,null,null,null,null,null,null,null,null,null,null,null,null,null,null,null,null,null,null,null,null,null,null,null,null,null,null,null,null,null,null,null,null,null,null,null,null,null,null,null,null,null,null,null,null,null,null,null,null,null,null,null,null,null,null,null,null,{"$f":"D63","v":"Costs of actuator installation"},{"$f":"IF(FM32=0,0,AL91)","v":4120},{"$f":"IF(FN32=0,0,AZ91)","v":3090},{"$f":"IF(FO32=0,0,BN91)","v":1030}]
[null,null,null,null,null,null,null,null,null,null,null,null,null,null,null,null,null,null,null,null,null,null,null,null,null,null,null,null,null,null,null,null,null,null,null,null,null,null,null,null,null,null,null,null,null,null,null,null,null,null,null,null,null,null,null,null,null,null,null,null,null,null,null,null,null,null,null,null,null,null,null,null,null,null,null,null,null,null,null,null,null,null,null,null,null,null,null,null,null,null,null,null,null,null,null,null,null,null,null,null,null,null,null,null,null,null,null,null,null,null,null,null,null,null,null,null,null,null,null,null,null,null,null,null,null,null,null,null,null,null,null,null,null,null,null,null,null,null,null,null,null,null,null,null,null,null,null,null,null,null,null,null,null,null,null,null,null,null,null,null,null,null,null,null,null,null,null,"Beschriftung y-Achse",{"$f":"CONCATENATE('Language-Currency'!A55,\" [\",BE2,\"]\")","v":"Costs [EUR]"}]
[null,null,null,null,null,null,null,null,null,null,null,null,null,null,null,null,null,null,null,null,null,null,null,null,null,null,null,null,null,null,null,null,null,null,null,null,null,null,null,null,null,null,null,null,null,null,null,null,null,null,null,null,null,null,null,null,null,null,null,null,null,null,null,null,null,null,null,null,null,null,null,null,null,null,null,null,null,null,null,null,null,null,null,null,null,null,null,{"$f":"'Language-Currency'!A101","v":"Display: High level of details"}]
[]
[null,{"$f":"'Language-Currency'!A76","v":"Number of valves per heat exchanger"},null,null,null,null,null,null,null,null,null,null,null,null,null,null,null,null,null,null,null,null,null,null,null,null,null,null,null,null,null,null,null,null,null,null,null,"4 Stk.",null,null,null,null,null,null,null,null,null,null,null,null,null,"3 Stk.",null,null,null,null,null,null,null,null,null,null,null,null,null,"1 Stk.",null,null,null,null,null,null,null,null,null,null,null,null,null,null,null,null,null,null,null,null,null,{"$f":"'Language-Currency'!A102","v":"Display: Middle level of details"}]
[]
[null,{"$f":"'Language-Currency'!A77","v":"Overall costs of material and installation"},null,null,null,null,null,null,null,null,null,null,null,null,null,null,null,null,null,null,null,null,null,null,null,null,null,null,null,null,null,null,null,null,null,null,null,{"$f":"CONCATENATE($BE$2,\" \",IF(AL69<10,ROUND(AL69,2),TEXT(AL69,\"#'###\")))","v":"EUR 33'750"},null,null,null,null,null,null,null,null,null,null,null,null,null,{"$f":"CONCATENATE($BE$2,\" \",IF(AZ69<10,ROUND(AZ69,2),TEXT(AZ69,\"#'###\")))","v":"EUR 26'583"},null,null,null,null,null,null,null,null,null,null,null,null,null,{"$f":"CONCATENATE($BE$2,\" \",IF(BN69<10,ROUND(BN69,2),TEXT(BN69,\"#'###\")))","v":"EUR 18'948"},null,null,null,null,null,null,null,null,null,null,null,null,null,null,null,null,null,null,null,null,null,{"$f":"'Language-Currency'!A103","v":"Display: Low level of details"}]
[]
[null,null,{"$f":"'Language-Currency'!A78","v":"Total material costs"},null,null,null,null,null,null,null,null,null,null,null,null,null,null,null,null,null,null,null,null,null,null,null,null,null,null,null,null,null,null,null,null,null,null,{"$f":"CONCATENATE($BE$2,\" \",IF(AL71<10,ROUND(AL71,2),TEXT(AL71,\"#'###\")))","v":"EUR 19'550"},null,null,null,null,null,null,null,null,null,null,null,null,null,{"$f":"CONCATENATE($BE$2,\" \",IF(AZ71<10,ROUND(AZ71,2),TEXT(AZ71,\"#'###\")))","v":"EUR 15'213"},null,null,null,null,null,null,null,null,null,null,null,null,null,{"$f":"CONCATENATE($BE$2,\" \",IF(BN71<10,ROUND(BN71,2),TEXT(BN71,\"#'###\")))","v":"EUR 11'438"}]
[]
[null,null,null,{"$f":"'Language-Currency'!A79","v":"Costs of all valves and actuators"},null,null,null,null,null,null,null,null,null,null,null,null,null,null,null,null,null,null,null,null,null,null,null,null,null,null,null,null,null,null,null,null,null,{"$f":"CONCATENATE($BE$2,\" \",IF(AL73<10,ROUND(AL73,2),TEXT(AL73,\"#'###\")))","v":"EUR 6'800"},null,null,null,null,null,null,null,null,null,null,null,null,null,{"$f":"CONCATENATE($BE$2,\" \",IF(AZ73<10,ROUND(AZ73,2),TEXT(AZ73,\"#'###\")))","v":"EUR 5'650"},null,null,null,null,null,null,null,null,null,null,null,null,null,{"$f":"CONCATENATE($BE$2,\" \",IF(BN73<10,ROUND(BN73,2),TEXT(BN73,\"#'###\")))","v":"EUR 8'250"}]
[null,null,null,{"$f":"'Language-Currency'!A80","v":"Total number of valves and actuators"},null,null,null,null,null,null,null,null,null,null,null,null,null,null,null,null,null,null,null,null,null,null,null,null,null,null,null,null,null,null,null,null,null,{"$f":"CONCATENATE(TEXT(AL74,\"#'###\"),\" \",'Language-Currency'!$A$58)","v":"200 pieces"},null,null,null,null,null,null,null,null,null,null,null,null,null,{"$f":"CONCATENATE(TEXT(AZ74,\"#'###\"),\" \",'Language-Currency'!$A$58)","v":"150 pieces"},null,null,null,null,null,null,null,null,null,null,null,null,null,{"$f":"CONCATENATE(TEXT(BN74,\"#'###\"),\" \",'Language-Currency'!$A$58)","v":"50 pieces"}]
[null,null,null,null,{"$f":"CONCATENATE('Language-Currency'!A81,\" \",'Language-Currency'!A72)","v":"Number of 2-way"},null,null,null,null,null,null,null,null,null,null,null,null,null,null,null,null,null,null,null,null,null,null,null,null,null,null,null,null,null,null,null,null,{"$f":"CONCATENATE(TEXT(AL75,\"#'###\"),\" \",'Language-Currency'!$A$58)","v":"200 pieces"},null,null,null,null,null,null,null,null,null,null,null,null,null,{"$f":"CONCATENATE(TEXT(AZ75,\"#'###\"),\" \",'Language-Currency'!$A$58)","v":"100 pieces"},null,null,null,null,null,null,null,null,null,null,null,null,null,{"$f":"CONCATENATE(BN75,\" \",'Language-Currency'!$A$58)","v":"0 pieces"}]
[null,null,null,null,{"$f":"CONCATENATE('Language-Currency'!A81,\" \",'Language-Currency'!A73)","v":"Number of 3-way"},null,null,null,null,null,null,null,null,null,null,null,null,null,null,null,null,null,null,null,null,null,null,null,null,null,null,null,null,null,null,null,null,{"$f":"CONCATENATE(AL76,\" \",'Language-Currency'!$A$58)","v":"0 pieces"},null,null,null,null,null,null,null,null,null,null,null,null,null,{"$f":"CONCATENATE(TEXT(AZ76,\"#'###\"),\" \",'Language-Currency'!$A$58)","v":"50 pieces"},null,null,null,null,null,null,null,null,null,null,null,null,null,{"$f":"CONCATENATE(BN76,\" \",'Language-Currency'!$A$58)","v":"0 pieces"}]
[null,null,null,null,{"$f":"CONCATENATE('Language-Currency'!A81,\" \",'Language-Currency'!A74)","v":"Number of 6-way"},null,null,null,null,null,null,null,null,null,null,null,null,null,null,null,null,null,null,null,null,null,null,null,null,null,null,null,null,null,null,null,null,{"$f":"CONCATENATE(AL77,\" \",'Language-Currency'!$A$58)","v":"0 pieces"},null,null,null,null,null,null,null,null,null,null,null,null,null,{"$f":"CONCATENATE(AZ77,\" \",'Language-Currency'!$A$58)","v":"0 pieces"},null,null,null,null,null,null,null,null,null,null,null,null,null,{"$f":"CONCATENATE(TEXT(BN77,\"#'###\"),\" \",'Language-Currency'!$A$58)","v":"50 pieces"}]
[]
[null,null,null,{"$f":"'Language-Currency'!A82","v":"Costs of data points, cable, junction boxes"},null,null,null,null,null,null,null,null,null,null,null,null,null,null,null,null,null,null,null,null,null,null,null,null,null,null,null,null,null,null,null,null,null,{"$f":"CONCATENATE($BE$2,\" \",IF(AL79<10,ROUND(AL79,2),TEXT(AL79,\"#'###\")))","v":"EUR 12'750"},null,null,null,null,null,null,null,null,null,null,null,null,null,{"$f":"CONCATENATE($BE$2,\" \",IF(AZ79<10,ROUND(AZ79,2),TEXT(AZ79,\"#'###\")))","v":"EUR 9'563"},null,null,null,null,null,null,null,null,null,null,null,null,null,{"$f":"CONCATENATE($BE$2,\" \",IF(BN79<10,ROUND(BN79,2),TEXT(BN79,\"#'###\")))","v":"EUR 3'188"}]
[null,null,null,{"$f":"'Language-Currency'!A83","v":"Number of data points / junction boxes"},null,null,null,null,null,null,null,null,null,null,null,null,null,null,null,null,null,null,null,null,null,null,null,null,null,null,null,null,null,null,null,null,null,{"$f":"CONCATENATE(TEXT(AL80,\"#'###\"),\" \",'Language-Currency'!$A$58)","v":"200 pieces"},null,null,null,null,null,null,null,null,null,null,null,null,null,{"$f":"CONCATENATE(TEXT(AZ80,\"#'###\"),\" \",'Language-Currency'!$A$58)","v":"150 pieces"},null,null,null,null,null,null,null,null,null,null,null,null,null,{"$f":"CONCATENATE(TEXT(BN80,\"#'###\"),\" \",'Language-Currency'!$A$58)","v":"50 pieces"}]
[null,null,null,{"$f":"'Language-Currency'!A84","v":"Total cable length"},null,null,null,null,null,null,null,null,null,null,null,null,null,null,null,null,null,null,null,null,null,null,null,null,null,null,null,null,null,null,null,null,null,{"$f":"IF($BN$81<1000,CONCATENATE(AL81,\" \",'Language-Currency'!$A$59),CONCATENATE(ROUND(AL81/1000,2),\" \",'Language-Currency'!$A$60))","v":"5 kilometres"},null,null,null,null,null,null,null,null,null,null,null,null,null,{"$f":"IF($BN$81<1000,CONCATENATE(AZ81,\" \",'Language-Currency'!$A$59),CONCATENATE(ROUND(AZ81/1000,2),\" \",'Language-Currency'!$A$60))","v":"3.75 kilometres"},null,null,null,null,null,null,null,null,null,null,null,null,null,{"$f":"IF($BN$81<1000,CONCATENATE(BN81,\" \",'Language-Currency'!$A$59),CONCATENATE(ROUND(BN81/1000,2),\" \",'Language-Currency'!$A$60))","v":"1.25 kilometres"}]
[]
[null,null,{"$f":"'Language-Currency'!A85","v":"Total installation costs"},null,null,null,null,null,null,null,null,null,null,null,null,null,null,null,null,null,null,null,null,null,null,null,null,null,null,null,null,null,null,null,null,null,null,{"$f":"CONCATENATE($BE$2,\" \",IF(AL83<10,ROUND(AL83,2),TEXT(AL83,\"#'###\")))","v":"EUR 14'200"},null,null,null,null,null,null,null,null,null,null,null,null,null,{"$f":"CONCATENATE($BE$2,\" \",IF(AZ83<10,ROUND(AZ83,2),TEXT(AZ83,\"#'###\")))","v":"EUR 11'370"},null,null,null,null,null,null,null,null,null,null,null,null,null,{"$f":"CONCATENATE($BE$2,\" \",IF(BN83<10,ROUND(BN83,2),TEXT(BN83,\"#'###\")))","v":"EUR 7'510"}]
[]
[null,null,null,{"$f":"'Language-Currency'!A86","v":"Costs of valve installation"},null,null,null,null,null,null,null,null,null,null,null,null,null,null,null,null,null,null,null,null,null,null,null,null,null,null,null,null,null,null,null,null,null,{"$f":"CONCATENATE($BE$2,\" \",IF(AL85<10,ROUND(AL85,2),TEXT(AL85,\"#'###\")))","v":"EUR 10'080"},null,null,null,null,null,null,null,null,null,null,null,null,null,{"$f":"CONCATENATE($BE$2,\" \",IF(AZ85<10,ROUND(AZ85,2),TEXT(AZ85,\"#'###\")))","v":"EUR 8'280"},null,null,null,null,null,null,null,null,null,null,null,null,null,{"$f":"CONCATENATE($BE$2,\" \",IF(BN85<10,ROUND(BN85,2),TEXT(BN85,\"#'###\")))","v":"EUR 6'480"}]
[null,null,null,{"$f":"'Language-Currency'!A87","v":"Effort valve installation"},null,null,null,null,null,null,null,null,null,null,null,null,null,null,null,null,null,null,null,null,null,null,null,null,null,null,null,null,null,null,null,null,null,{"$f":"IF(AL86<10,CONCATENATE(ROUND(AL86,1),\" \",'Language-Currency'!$A$63),CONCATENATE(TEXT(AL86,\"#'###\"),\" \",'Language-Currency'!$A$63))","v":"252 hours"},null,null,null,null,null,null,null,null,null,null,null,null,null,{"$f":"IF(AZ86<10,CONCATENATE(ROUND(AZ86,1),\" \",'Language-Currency'!$A$63),CONCATENATE(TEXT(AZ86,\"#'###\"),\" \",'Language-Currency'!$A$63))","v":"207 hours"},null,null,null,null,null,null,null,null,null,null,null,null,null,{"$f":"IF(BN86<10,CONCATENATE(ROUND(BN86,1),\" \",'Language-Currency'!$A$63),CONCATENATE(TEXT(BN86,\"#'###\"),\" \",'Language-Currency'!$A$63))","v":"162 hours"}]
[null,null,null,null,{"$f":"CONCATENATE('Language-Currency'!A88,\" \",'Language-Currency'!A72)","v":"Installation effort 2-way"},null,null,null,null,null,null,null,null,null,null,null,null,null,null,null,null,null,null,null,null,null,null,null,null,null,null,null,null,null,null,null,null,{"$f":"IF(AL87<10,CONCATENATE(ROUND(AL87,1),\" \",'Language-Currency'!$A$63),CONCATENATE(TEXT(AL87,\"#'###\"),\" \",'Language-Currency'!$A$63))","v":"252 hours"},null,null,null,null,null,null,null,null,null,null,null,null,null,{"$f":"IF(AZ87<10,CONCATENATE(ROUND(AZ87,1),\" \",'Language-Currency'!$A$63),CONCATENATE(TEXT(AZ87,\"#'###\"),\" \",'Language-Currency'!$A$63))","v":"126 hours"},null,null,null,null,null,null,null,null,null,null,null,null,null,{"$f":"IF(BN87<10,CONCATENATE(ROUND(BN87,1),\" \",'Language-Currency'!$A$63),CONCATENATE(ROUND(BN87,0),\" \",'Language-Currency'!$A$63))","v":"0 hours"}]
[null,null,null,null,{"$f":"CONCATENATE('Language-Currency'!A88,\" \",'Language-Currency'!A73)","v":"Installation effort 3-way"},null,null,null,null,null,null,null,null,null,null,null,null,null,null,null,null,null,null,null,null,null,null,null,null,null,null,null,null,null,null,null,null,{"$f":"IF(AL88<10,CONCATENATE(ROUND(AL88,1),\" \",'Language-Currency'!$A$63),CONCATENATE(ROUND(AL88,0),\" \",'Language-Currency'!$A$63))","v":"0 hours"},null,null,null,null,null,null,null,null,null,null,null,null,null,{"$f":"IF(AZ88<10,CONCATENATE(ROUND(AZ88,1),\" \",'Language-Currency'!$A$63),CONCATENATE(TEXT(AZ88,\"#'###\"),\" \",'Language-Currency'!$A$63))","v":"81 hours"},null,null,null,null,null,null,null,null,null,null,null,null,null,{"$f":"IF(BN88<10,CONCATENATE(ROUND(BN88,1),\" \",'Language-Currency'!$A$63),CONCATENATE(ROUND(BN88,0),\" \",'Language-Currency'!$A$63))","v":"0 hours"}]
[null,null,null,null,{"$f":"CONCATENATE('Language-Currency'!A88,\" \",'Language-Currency'!A74)","v":"Installation effort 6-way"},null,null,null,null,null,null,null,null,null,null,null,null,null,null,null,null,null,null,null,null,null,null,null,null,null,null,null,null,null,null,null,null,{"$f":"IF(AL89<10,CONCATENATE(ROUND(AL89,1),\" \",'Language-Currency'!$A$63),CONCATENATE(ROUND(AL89,0),\" \",'Language-Currency'!$A$63))","v":"0 hours"},null,null,null,null,null,null,null,null,null,null,null,null,null,{"$f":"IF(AZ89<10,CONCATENATE(ROUND(AZ89,1),\" \",'Language-Currency'!$A$63),CONCATENATE(ROUND(AZ89,0),\" \",'Language-Currency'!$A$63))","v":"0 hours"},null,null,null,null,null,null,null,null,null,null,null,null,null,{"$f":"IF(BN89<10,CONCATENATE(ROUND(BN89,1),\" \",'Language-Currency'!$A$63),CONCATENATE(TEXT(BN89,\"#'###\"),\" \",'Language-Currency'!$A$63))","v":"162 hours"}]
[]
[null,null,null,{"$f":"'Language-Currency'!A89","v":"Costs of actuator installation"},null,null,null,null,null,null,null,null,null,null,null,null,null,null,null,null,null,null,null,null,null,null,null,null,null,null,null,null,null,null,null,null,null,{"$f":"CONCATENATE($BE$2,\" \",IF(AL91<10,ROUND(AL91,2),TEXT(AL91,\"#'###\")))","v":"EUR 4'120"},null,null,null,null,null,null,null,null,null,null,null,null,null,{"$f":"CONCATENATE($BE$2,\" \",IF(AZ91<10,ROUND(AZ91,2),TEXT(AZ91,\"#'###\")))","v":"EUR 3'090"},null,null,null,null,null,null,null,null,null,null,null,null,null,{"$f":"CONCATENATE($BE$2,\" \",IF(BN91<10,ROUND(BN91,2),TEXT(BN91,\"#'###\")))","v":"EUR 1'030"}]
[null,null,null,{"$f":"'Language-Currency'!A90","v":"Effort installation actuator"},null,null,null,null,null,null,null,null,null,null,null,null,null,null,null,null,null,null,null,null,null,null,null,null,null,null,null,null,null,null,null,null,null,{"$f":"IF(AL92<10,CONCATENATE(ROUND(AL92,1),\" \",'Language-Currency'!$A$63),CONCATENATE(TEXT(AL92,\"#'###\"),\" \",'Language-Currency'!$A$63))","v":"14 hours"},null,null,null,null,null,null,null,null,null,null,null,null,null,{"$f":"IF(AZ92<10,CONCATENATE(ROUND(AZ92,1),\" \",'Language-Currency'!$A$63),CONCATENATE(TEXT(AZ92,\"#'###\"),\" \",'Language-Currency'!$A$63))","v":"11 hours"},null,null,null,null,null,null,null,null,null,null,null,null,null,{"$f":"IF(BN92<10,CONCATENATE(ROUND(BN92,1),\" \",'Language-Currency'!$A$63),CONCATENATE(TEXT(BN92,\"#'###\"),\" \",'Language-Currency'!$A$63))","v":"3.5 hours"}]
[null,null,null,{"$f":"'Language-Currency'!A91","v":"Effort installation of junction box"},null,null,null,null,null,null,null,null,null,null,null,null,null,null,null,null,null,null,null,null,null,null,null,null,null,null,null,null,null,null,null,null,null,{"$f":"IF(AL93<10,CONCATENATE(ROUND(AL93,1),\" \",'Language-Currency'!$A$63),CONCATENATE(TEXT(AL93,\"#'###\"),\" \",'Language-Currency'!$A$63))","v":"64 hours"},null,null,null,null,null,null,null,null,null,null,null,null,null,{"$f":"IF(AZ93<10,CONCATENATE(ROUND(AZ93,1),\" \",'Language-Currency'!$A$63),CONCATENATE(TEXT(AZ93,\"#'###\"),\" \",'Language-Currency'!$A$63))","v":"48 hours"},null,null,null,null,null,null,null,null,null,null,null,null,null,{"$f":"IF(BN93<10,CONCATENATE(ROUND(BN93,1),\" \",'Language-Currency'!$A$63),CONCATENATE(TEXT(BN93,\"#'###\"),\" \",'Language-Currency'!$A$63))","v":"16 hours"}]
[null,null,null,{"$f":"'Language-Currency'!A92","v":"Effort cable installation"},null,null,null,null,null,null,null,null,null,null,null,null,null,null,null,null,null,null,null,null,null,null,null,null,null,null,null,null,null,null,null,null,null,{"$f":"IF(AL94<10,CONCATENATE(ROUND(AL94,1),\" \",'Language-Currency'!$A$63),CONCATENATE(TEXT(AL94,\"#'###\"),\" \",'Language-Currency'!$A$63))","v":"25 hours"},null,null,null,null,null,null,null,null,null,null,null,null,null,{"$f":"IF(AZ94<10,CONCATENATE(ROUND(AZ94,1),\" \",'Language-Currency'!$A$63),CONCATENATE(TEXT(AZ94,\"#'###\"),\" \",'Language-Currency'!$A$63))","v":"19 hours"},null,null,null,null,null,null,null,null,null,null,null,null,null,{"$f":"IF(BN94<10,CONCATENATE(ROUND(BN94,1),\" \",'Language-Currency'!$A$63),CONCATENATE(TEXT(BN94,\"#'###\"),\" \",'Language-Currency'!$A$63))","v":"6.3 hours"}]
[]
[]
[null,"Gesamtkosten Ventile/Antriebe/Montage",null,null,null,null,null,null,null,null,null,null,null,null,null,null,null,null,null,null,null,null,null,null,null,null,null,null,null,null,null,null,null,null,null,null,null,{"$f":"AL71+AL83","v":33750},null,null,null,null,null,null,null,null,null,null,null,null,null,{"$f":"AZ71+AZ83","v":26582.5},null,null,null,null,null,null,null,null,null,null,null,null,null,{"$f":"BN71+BN83","v":18947.5}]
[]
[null,null,"Gesamtkosten Material",null,null,null,null,null,null,null,null,null,null,null,null,null,null,null,null,null,null,null,null,null,null,null,null,null,null,null,null,null,null,null,null,null,null,{"$f":"AL73+AL79","v":19550},null,null,null,null,null,null,null,null,null,null,null,null,null,{"$f":"AZ73+AZ79","v":15212.5},null,null,null,null,null,null,null,null,null,null,null,null,null,{"$f":"BN73+BN79","v":11437.5}]
[]
[null,null,null,"Kosten alle Ventile",null,null,null,null,null,null,null,null,null,null,null,null,null,null,null,null,null,null,null,null,null,null,null,null,null,null,null,null,null,null,null,null,null,{"$f":"AL75/2*BE21+AL75/2*BE22","v":6800},null,null,null,null,null,null,null,null,null,null,null,null,null,{"$f":"AZ75*BE21+AZ76*BE23","v":5650},null,null,null,null,null,null,null,null,null,null,null,null,null,{"$f":"BN77*BE24","v":8250}]
[null,null,null,"Anzahl Ventile Projekt",null,null,null,null,null,null,null,null,null,null,null,null,null,null,null,null,null,null,null,null,null,null,null,null,null,null,null,null,null,null,null,null,null,{"$f":"AL75+AL76+AL77","v":200},null,null,null,null,null,null,null,null,null,null,null,null,null,{"$f":"AZ75+AZ76+AZ77","v":150},null,null,null,null,null,null,null,null,null,null,null,null,null,{"$f":"BN75+BN76+BN77","v":50}]
[null,null,null,null,"Anzahl 2-Weg",null,null,null,null,null,null,null,null,null,null,null,null,null,null,null,null,null,null,null,null,null,null,null,null,null,null,null,null,null,null,null,null,{"$f":"BE16*4","v":200},null,null,null,null,null,null,null,null,null,null,null,null,null,{"$f":"BE16*2","v":100},null,null,null,null,null,null,null,null,null,null,null,null,null,0]
[null,null,null,null,"Anzahl 3-Weg",null,null,null,null,null,null,null,null,null,null,null,null,null,null,null,null,null,null,null,null,null,null,null,null,null,null,null,null,null,null,null,null,0,null,null,null,null,null,null,null,null,null,null,null,null,null,{"$f":"BE16*1","v":50},null,null,null,null,null,null,null,null,null,null,null,null,null,0]
[null,null,null,null,"Anzahl 6-Weg",null,null,null,null,null,null,null,null,null,null,null,null,null,null,null,null,null,null,null,null,null,null,null,null,null,null,null,null,null,null,null,null,0,null,null,null,null,null,null,null,null,null,null,null,null,null,0,null,null,null,null,null,null,null,null,null,null,null,null,null,{"$f":"BE16*1","v":50}]
[]
[null,null,null,"Kosten IO + Kabel + Anschlussdosen",null,null,null,null,null,null,null,null,null,null,null,null,null,null,null,null,null,null,null,null,null,null,null,null,null,null,null,null,null,null,null,null,null,{"$f":"AL81*$BE$26+AL80*$BE$25+AL80*$BE$27","v":12750},null,null,null,null,null,null,null,null,null,null,null,null,null,{"$f":"AZ81*$BE$26+AZ80*$BE$25+AZ80*$BE$27","v":9562.5},null,null,null,null,null,null,null,null,null,null,null,null,null,{"$f":"BN81*$BE$26+BN80*$BE$25+BN80*$BE$27","v":3187.5}]
[null,null,null,"Anzahl IO / Anschlussdosen",null,null,null,null,null,null,null,null,null,null,null,null,null,null,null,null,null,null,null,null,null,null,null,null,null,null,null,null,null,null,null,null,null,{"$f":"$BE$16*4","v":200},null,null,null,null,null,null,null,null,null,null,null,null,null,{"$f":"$BE$16*3","v":150},null,null,null,null,null,null,null,null,null,null,null,null,null,{"$f":"$BE$16*1","v":50}]
[null,null,null,"Kabellänge total",null,null,null,null,null,null,null,null,null,null,null,null,null,null,null,null,null,null,null,null,null,null,null,null,null,"Meter",null,null,null,null,null,null,null,{"$f":"AL74*$BE$20","v":5000},null,null,null,null,null,null,null,null,null,null,null,null,null,{"$f":"AZ74*$BE$20","v":3750},null,null,null,null,null,null,null,null,null,null,null,null,null,{"$f":"BN74*$BE$20","v":1250}]
[]
[null,null,"Gesamtkosten Installation",null,null,null,null,null,null,null,null,null,null,null,null,null,null,null,null,null,null,null,null,null,null,null,null,null,null,null,null,null,null,null,null,null,null,{"$f":"AL85+AL91","v":14200},null,null,null,null,null,null,null,null,null,null,null,null,null,{"$f":"AZ85+AZ91","v":11370},null,null,null,null,null,null,null,null,null,null,null,null,null,{"$f":"BN85+BN91","v":7510}]
[]
[null,null,null,"Kosten Ventilinstallation",null,null,null,null,null,null,null,null,null,null,null,null,null,null,null,null,null,null,null,null,null,null,null,null,null,null,null,null,null,null,null,null,null,{"$f":"AL86*$BE$28","v":10080},null,null,null,null,null,null,null,null,null,null,null,null,null,{"$f":"AZ86*$BE$28","v":8280},null,null,null,null,null,null,null,null,null,null,null,null,null,{"$f":"BN86*$BE$28","v":6480}]
[null,null,null,"Aufwand Ventilinstallation",null,null,null,null,null,null,null,null,null,null,null,null,null,null,null,null,null,null,null,null,null,null,null,null,null,null,null,null,null,null,null,null,null,{"$f":"AL87+AL88+AL89","v":252},null,null,null,null,null,null,null,null,null,null,null,null,null,{"$f":"AZ87+AZ88+AZ89","v":207},null,null,null,null,null,null,null,null,null,null,null,null,null,{"$f":"BN87+BN88+BN89","v":162}]
[null,null,null,null,"Aufwand Installation 2-Weg",null,null,null,null,null,null,null,null,null,null,null,null,null,null,null,null,null,null,null,null,null,null,null,null,null,null,null,null,null,null,null,null,{"$f":"AL75*'Calculation values'!$DC$21","v":252},null,null,null,null,null,null,null,null,null,null,null,null,null,{"$f":"AZ75*'Calculation values'!$DC$21","v":126},null,null,null,null,null,null,null,null,null,null,null,null,null,{"$f":"BN75*'Calculation values'!$DC$21","v":0}]
[null,null,null,null,"Aufwand Installation 3-Weg",null,null,null,null,null,null,null,null,null,null,null,null,null,null,null,null,null,null,null,null,null,null,null,null,null,null,null,null,null,null,null,null,{"$f":"AL76*'Calculation values'!$DD$21","v":0},null,null,null,null,null,null,null,null,null,null,null,null,null,{"$f":"AZ76*'Calculation values'!$DD$21","v":81},null,null,null,null,null,null,null,null,null,null,null,null,null,{"$f":"BN76*'Calculation values'!$DD$21","v":0}]
[null,null,null,null,"Aufwand Installation 6-Weg",null,null,null,null,null,null,null,null,null,null,null,null,null,null,null,null,null,null,null,null,null,null,null,null,null,null,null,null,null,null,null,null,{"$f":"AL77*'Calculation values'!$DE$21","v":0},null,null,null,null,null,null,null,null,null,null,null,null,null,{"$f":"AZ77*'Calculation values'!$DE$21","v":0},null,null,null,null,null,null,null,null,null,null,null,null,null,{"$f":"BN77*'Calculation values'!$DE$21","v":162}]
[]
[null,null,null,"Kosten elektrische Installation",null,null,null,null,null,null,null,null,null,null,null,null,null,null,null,null,null,null,null,null,null,null,null,null,null,null,null,null,null,null,null,null,null,{"$f":"(AL92+AL93+AL94)*$BE$28","v":4120},null,null,null,null,null,null,null,null,null,null,null,null,null,{"$f":"(AZ92+AZ93+AZ94)*$BE$28","v":3090},null,null,null,null,null,null,null,null,null,null,null,null,null,{"$f":"(BN92+BN93+BN94)*$BE$28","v":1030}]
[null,null,null,"Aufwand Antriebsinstallation",null,null,null,null,null,null,null,null,null,null,null,null,null,null,null,null,null,null,null,null,null,null,null,null,null,null,null,null,null,null,null,null,null,{"$f":"AL74*'Calculation values'!$DF$21","v":14.000000000000002},null,null,null,null,null,null,null,null,null,null,null,null,null,{"$f":"AZ74*'Calculation values'!$DF$21","v":10.500000000000002},null,null,null,null,null,null,null,null,null,null,null,null,null,{"$f":"BN74*'Calculation values'!$DF$21","v":3.5000000000000004}]
[null,null,null,"Aufwand Montage Anschlussdosen",null,null,null,null,null,null,null,null,null,null,null,null,null,null,null,null,null,null,null,null,null,null,null,null,null,null,null,null,null,null,null,null,null,{"$f":"AL74*'Calculation values'!$DG$21","v":64},null,null,null,null,null,null,null,null,null,null,null,null,null,{"$f":"AZ74*'Calculation values'!$DG$21","v":48},null,null,null,null,null,null,null,null,null,null,null,null,null,{"$f":"BN74*'Calculation values'!$DG$21","v":16}]
[null,null,null,"Aufwand Kabelverlegung",null,null,null,null,null,null,null,null,null,null,null,null,null,null,null,null,null,null,null,null,null,null,null,null,null,null,null,null,null,null,null,null,null,{"$f":"AL81*'Calculation values'!$DH$21","v":25},null,null,null,null,null,null,null,null,null,null,null,null,null,{"$f":"AZ81*'Calculation values'!$DH$21","v":18.75},null,null,null,null,null,null,null,null,null,null,null,null,null,{"$f":"BN81*'Calculation values'!$DH$21","v":6.25}]
[]
[]
[null,null,{"$f":"C4","v":"Version 1.0.1"},null,null,null,null,null,null,null,null,null,null,null,null,null,null,null,null,null,null,null,null,null,null,null,null,null,null,null,null,null,null,null,null,null,null,null,null,null,null,null,null,null,null,null,null,null,null,null,null,null,null,null,null,null,null,null,null,null,null,null,null,null,null,null,null,null,null,null,null,null,null,null,null,null,null,{"$f":"CONCATENATE('Language-Currency'!A28,\" 2 \",'Language-Currency'!A29,\" 2\")","v":"Page 2 of 2"}]
[null,{"$f":"B8","v":"Project"},null,null,null,null,null,null,null,null,null,null,null,null,null,null,null,null,null,null,{"$f":"U8","v":0}]
[null,{"$f":"B9","v":"Version"},null,null,null,null,null,null,null,null,null,null,null,null,null,null,null,null,null,null,{"$f":"U9","v":0}]
[]
[null,{"$f":"B11","v":"Creator"},null,null,null,null,null,null,null,null,null,null,null,null,null,null,null,null,null,null,{"$f":"U11","v":0}]
[null,{"$f":"B12","v":"Processing date"},null,null,null,null,null,null,null,null,null,null,null,null,null,null,null,null,null,null,{"$f":"U12","v":0}]
[]
[null,{"$f":"B30","v":"  Estimate of costs"}]
[]
[]
[]
[]
[]
[]
[]
[]
[]
[]
[]
[]
[]
[]
[null,null,null,null,null,null,null,null,null,null,null,null,{"$f":"AL32","v":"4 pcs. 2-way"},null,null,null,null,null,null,null,null,null,null,null,null,null,null,null,null,null,null,null,{"$f":"AZ32","v":"2 pcs. 2-way"},null,null,null,null,null,null,null,null,null,null,null,null,null,null,null,null,null,null,null,{"$f":"BN32","v":"1 pcs. 6-way"}]
[null,null,null,null,null,null,null,null,null,null,null,null,null,null,null,null,null,null,null,null,null,null,null,null,null,null,null,null,null,null,null,null,{"$f":"AZ33","v":"1 pcs. 3-way"}]
[]
[null,null,null,null,null,null,null,null,null,null,null,null,{"$f":"AL41","v":"EUR 33'750"},null,null,null,null,null,null,null,null,null,null,null,null,null,null,null,null,null,null,null,{"$f":"AZ41","v":"EUR 26'583"},null,null,null,null,null,null,null,null,null,null,null,null,null,null,null,null,null,null,null,{"$f":"BN41","v":"EUR 18'948"}]
[null,null,null,null,null,null,null,null,null,null,null,null,{"$f":"BS129*P129+BS130*P130+BS131*P131","v":1.7812376302942341},null,null,null,null,null,null,null,null,null,null,null,null,null,null,null,null,null,null,null,{"$f":"BS129*AH129+BS130*AH130+BS131*AH131","v":1.4029555350310068},null,null,null,null,null,null,null,null,null,null,null,null,null,null,null,null,null,null,null,{"$f":"BS129*AZ129+BS130*AZ130+BS131*AZ131","v":1}]
[]
[null,null,null,null,null,null,null,null,null,null,null,null,null,null,null,null,null,null,null,null,null,null,null,null,null,null,null,null,null,null,null,null,null,null,null,null,null,null,null,null,null,null,null,null,null,null,null,null,null,null,null,null,{"$f":"CONCATENATE('Language-Currency'!A24,CHAR(10),\"DN15: R3015-..-..-B2\",CHAR(10),\"DN20: R3020-..-..-B2\")","v":"Belimo 6-way zone valve\nDN15: R3015-..-..-B2\nDN20: R3020-..-..-B2"}]
[]
[]
[]
[null,null,null,null,null,null,null,null,null,null,null,null,null,null,null,1,null,null,null,null,null,null,null,null,null,null,null,null,null,null,null,null,null,{"$f":"P129/AL69*AZ69","v":0.78762962962962968},null,null,null,null,null,null,null,null,null,null,null,null,null,null,null,null,null,{"$f":"P129/AL69*BN69","v":0.56140740740740747},null,null,null,null,null,null,null,null,null,null,null,null,null,null,null,null,null,null,{"$f":"IF(OR(P129<1,AH129<1,AZ129<1),0,1)","v":0}]
[null,null,null,null,null,null,null,null,null,null,null,null,null,null,null,{"$f":"AH130/AZ69*AL69","v":1.2696322768738832},null,null,null,null,null,null,null,null,null,null,null,null,null,null,null,null,null,1,null,null,null,null,null,null,null,null,null,null,null,null,null,null,null,null,null,{"$f":"AH130/AZ69*BN69","v":0.71278096492053045},null,null,null,null,null,null,null,null,null,null,null,null,null,null,null,null,null,null,{"$f":"IF(OR(P130<1,AH130<1,AZ130<1),0,1)","v":0}]
[null,null,null,null,null,null,null,null,null,null,null,null,null,null,null,{"$f":"AZ131/BN69*AL69","v":1.7812376302942341},null,null,null,null,null,null,null,null,null,null,null,null,null,null,null,null,null,{"$f":"AZ131/BN69*AZ69","v":1.4029555350310068},null,null,null,null,null,null,null,null,null,null,null,null,null,null,null,null,null,1,null,null,null,null,null,null,null,null,null,null,null,null,null,null,null,null,null,null,{"$f":"IF(OR(P131<1,AH131<1,AZ131<1),0,1)","v":1}]
[]
[null,{"$f":"CONCATENATE(\"  \",'Language-Currency'!A104)","v":"  Disclaimer / Information"}]
[null,null,null,null,null,null,null,null,null,null,null,null,null,null,null,null,null,null,null,null,null,null,null,null,null,null,null,null,null,null,null,null,null,null,null,null,null,null,null,null,null,null,null,null,null,null,null,null,null,null,null,null,null,null,null,null,null,null,null,null,null,null,null,null,null,null,null,null,null,null,null,null,null,null,null,null,null,null,null,null,null,null,null,null,null,null,null,{"$f":"'Language-Currency'!A114","v":"Page up"}]
[null,{"$f":"FL138","v":"This is an estimating tool which considers the named costs. Results are dependent on the accuracy of the input values.\n\nFor the calculation of the installation costs the following standard times has been used:\n  ▪ Installation 2-way: 75.6 minutes per valve\n  ▪ Installation 3-way: 97.2 minutes per valve\n  ▪ Installation 6-way: 194.4 minutes per valve\n  ▪ Installation Actuator: 4.2 minutes per actuator\n  ▪ Installation Junction box: 19.2 minutes per junction box\n  ▪ Effort cable installation : 0.3 minutes per linear meter\n\nSubject to modifications and amendments."}]
[null,null,null,null,null,null,null,null,null,null,null,null,null,null,null,null,null,null,null,null,null,null,null,null,null,null,null,null,null,null,null,null,null,null,null,null,null,null,null,null,null,null,null,null,null,null,null,null,null,null,null,null,null,null,null,null,null,null,null,null,null,null,null,null,null,null,null,null,null,null,null,null,null,null,null,null,null,null,null,null,null,null,null,null,null,null,null,null,null,null,null,null,null,null,null,null,null,null,null,null,null,null,null,null,null,null,null,null,null,null,null,null,null,null,null,null,null,null,null,null,null,null,null,null,null,null,null,null,null,null,null,null,null,null,null,null,null,null,null,null,null,null,null,null,null,null,null,null,null,null,null,null,null,null,null,null,null,null,null,null,null,null,null,null,null,null,null,"Disclaimertext"]
[]
[null,null,null,null,null,null,null,null,null,null,null,null,null,null,null,null,null,null,null,null,null,null,null,null,null,null,null,null,null,null,null,null,null,null,null,null,null,null,null,null,null,null,null,null,null,null,null,null,null,null,null,null,null,null,null,null,null,null,null,null,null,null,null,null,null,null,null,null,null,null,null,null,null,null,null,null,null,null,null,null,null,null,null,null,null,null,null,null,null,null,null,null,null,null,null,null,null,null,null,null,null,null,null,null,null,null,null,null,null,null,null,null,null,null,null,null,null,null,null,null,null,null,null,null,null,null,null,null,null,null,null,null,null,null,null,null,null,null,null,null,null,null,null,null,null,null,null,null,null,null,null,null,null,null,null,null,null,null,null,null,null,null,null,null,null,null,null,{"$f":"CONCATENATE('Language-Currency'!A95,CHAR(10),CHAR(10),'Language-Currency'!A96,CHAR(10),FL140,CHAR(10),FL141,CHAR(10),FL142,CHAR(10),FL143,CHAR(10),FL144,CHAR(10),FL145,CHAR(10),CHAR(10),'Language-Currency'!A98)","v":"This is an estimating tool which considers the named costs. Results are dependent on the accuracy of the input values.\n\nFor the calculation of the installation costs the following standard times has been used:\n  ▪ Installation 2-way: 75.6 minutes per valve\n  ▪ Installation 3-way: 97.2 minutes per valve\n  ▪ Installation 6-way: 194.4 minutes per valve\n  ▪ Installation Actuator: 4.2 minutes per actuator\n  ▪ Installation Junction box: 19.2 minutes per junction box\n  ▪ Effort cable installation : 0.3 minutes per linear meter\n\nSubject to modifications and amendments."}]
[]
[null,null,null,null,null,null,null,null,null,null,null,null,null,null,null,null,null,null,null,null,null,null,null,null,null,null,null,null,null,null,null,null,null,null,null,null,null,null,null,null,null,null,null,null,null,null,null,null,null,null,null,null,null,null,null,null,null,null,null,null,null,null,null,null,null,null,null,null,null,null,null,null,null,null,null,null,null,null,null,null,null,null,null,null,null,null,null,null,null,null,null,null,null,null,null,null,null,null,null,null,null,null,null,null,null,null,null,null,null,null,null,null,null,null,null,null,null,null,null,null,null,null,null,null,null,null,null,null,null,null,null,null,null,null,null,null,null,null,null,null,null,null,null,null,null,null,null,null,null,null,null,null,null,null,null,null,null,null,null,null,null,null,null,null,null,null,null,{"$f":"CONCATENATE(\"  ▪ \",'Language-Currency'!A97,\" \",'Language-Currency'!A72,\": \",'Calculation values'!DC22,\" \",'Language-Currency'!A64,\" \",'Language-Currency'!A48)","v":"  ▪ Installation 2-way: 75.6 minutes per valve"}]
[null,null,null,null,null,null,null,null,null,null,null,null,null,null,null,null,null,null,null,null,null,null,null,null,null,null,null,null,null,null,null,null,null,null,null,null,null,null,null,null,null,null,null,null,null,null,null,null,null,null,null,null,null,null,null,null,null,null,null,null,null,null,null,null,null,null,null,null,null,null,null,null,null,null,null,null,null,null,null,null,null,null,null,null,null,null,null,null,null,null,null,null,null,null,null,null,null,null,null,null,null,null,null,null,null,null,null,null,null,null,null,null,null,null,null,null,null,null,null,null,null,null,null,null,null,null,null,null,null,null,null,null,null,null,null,null,null,null,null,null,null,null,null,null,null,null,null,null,null,null,null,null,null,null,null,null,null,null,null,null,null,null,null,null,null,null,null,{"$f":"CONCATENATE(\"  ▪ \",'Language-Currency'!A97,\" \",'Language-Currency'!A73,\": \",'Calculation values'!DD22,\" \",'Language-Currency'!A64,\" \",'Language-Currency'!A48)","v":"  ▪ Installation 3-way: 97.2 minutes per valve"}]
[null,null,null,null,null,null,null,null,null,null,null,null,null,null,null,null,null,null,null,null,null,null,null,null,null,null,null,null,null,null,null,null,null,null,null,null,null,null,null,null,null,null,null,null,null,null,null,null,null,null,null,null,null,null,null,null,null,null,null,null,null,null,null,null,null,null,null,null,null,null,null,null,null,null,null,null,null,null,null,null,null,null,null,null,null,null,null,null,null,null,null,null,null,null,null,null,null,null,null,null,null,null,null,null,null,null,null,null,null,null,null,null,null,null,null,null,null,null,null,null,null,null,null,null,null,null,null,null,null,null,null,null,null,null,null,null,null,null,null,null,null,null,null,null,null,null,null,null,null,null,null,null,null,null,null,null,null,null,null,null,null,null,null,null,null,null,null,{"$f":"CONCATENATE(\"  ▪ \",'Language-Currency'!A97,\" \",'Language-Currency'!A74,\": \",'Calculation values'!DE22,\" \",'Language-Currency'!A64,\" \",'Language-Currency'!A48)","v":"  ▪ Installation 6-way: 194.4 minutes per valve"}]
[null,null,null,null,null,null,null,null,null,null,null,null,null,null,null,null,null,null,null,null,null,null,null,null,null,null,null,null,null,null,null,null,null,null,null,null,null,null,null,null,null,null,null,null,null,null,null,null,null,null,null,null,null,null,null,null,null,null,null,null,null,null,null,null,null,null,null,null,null,null,null,null,null,null,null,null,null,null,null,null,null,null,null,null,null,null,null,null,null,null,null,null,null,null,null,null,null,null,null,null,null,null,null,null,null,null,null,null,null,null,null,null,null,null,null,null,null,null,null,null,null,null,null,null,null,null,null,null,null,null,null,null,null,null,null,null,null,null,null,null,null,null,null,null,null,null,null,null,null,null,null,null,null,null,null,null,null,null,null,null,null,null,null,null,null,null,null,{"$f":"CONCATENATE(\"  ▪ \",'Language-Currency'!A97,\" \",'Language-Currency'!A34,\": \",'Calculation values'!DF22,\" \",'Language-Currency'!A64,\" \",'Language-Currency'!A38)","v":"  ▪ Installation Actuator: 4.2 minutes per actuator"}]
[null,null,null,null,null,null,null,null,null,null,null,null,null,null,null,null,null,null,null,null,null,null,null,null,null,null,null,null,null,null,null,null,null,null,null,null,null,null,null,null,null,null,null,null,null,null,null,null,null,null,null,null,null,null,null,null,null,null,null,null,null,null,null,null,null,null,null,null,null,null,null,null,null,null,null,null,null,null,null,null,null,null,null,null,null,null,null,null,null,null,null,null,null,null,null,null,null,null,null,null,null,null,null,null,null,null,null,null,null,null,null,null,null,null,null,null,null,null,null,null,null,null,null,null,null,null,null,null,null,null,null,null,null,null,null,null,null,null,null,null,null,null,null,null,null,null,null,null,null,null,null,null,null,null,null,null,null,null,null,null,null,null,null,null,null,null,null,{"$f":"CONCATENATE(\"  ▪ \",'Language-Currency'!A97,\" \",'Language-Currency'!A39,\": \",'Calculation values'!DG22,\" \",'Language-Currency'!A64,\" \",'Language-Currency'!A40)","v":"  ▪ Installation Junction box: 19.2 minutes per junction box"}]
[null,null,null,null,null,null,null,null,null,null,null,null,null,null,null,null,null,null,null,null,null,null,null,null,null,null,null,null,null,null,null,null,null,null,null,null,null,null,null,null,null,null,null,null,null,null,null,null,null,null,null,null,null,null,null,null,null,null,null,null,null,null,null,null,null,null,null,null,null,null,null,null,null,null,null,null,null,null,null,null,null,null,null,null,null,null,null,null,null,null,null,null,null,null,null,null,null,null,null,null,null,null,null,null,null,null,null,null,null,null,null,null,null,null,null,null,null,null,null,null,null,null,null,null,null,null,null,null,null,null,null,null,null,null,null,null,null,null,null,null,null,null,null,null,null,null,null,null,null,null,null,null,null,null,null,null,null,null,null,null,null,null,null,null,null,null,null,{"$f":"CONCATENATE(\"  ▪ \",'Language-Currency'!A92,\" \",\": \",'Calculation values'!DH22,\" \",'Language-Currency'!A64,\" \",'Language-Currency'!A94)","v":"  ▪ Effort cable installation : 0.3 minutes per linear meter"}]

{"sheet":"Cost analysis","index":1,"n_rows":11,"n_cols":85,"rows_kept":11,"cut":false,"hidden":false,"merged":[[1,1,1,78],[2,1,2,78],[4,12,5,31],[4,32,4,51],[4,52,5,71],[5,32,5,51],[6,12,6,31],[6,32,6,51],[6,52,6,71],[7,12,7,31],[7,32,7,51],[7,52,7,71],[8,12,8,31],[8,32,8,51],[8,52,8,71],[10,12,10,31],[10,32,10,51],[10,52,10,71]]}
[null,null,{"$f":"'MAIN PAGE'!C4","v":"Version 1.0.1"}]
[null,"  Belimo Savings Estimator"]
[null,{"$f":"'MAIN PAGE'!B6:CA6","v":"  Investment costs 4-pipe system"},null,null,null,null,null,null,null,null,null,null,null,null,null,null,null,null,null,null,null,null,null,null,null,null,null,null,null,null,null,null,null,null,null,null,null,null,null,null,null,null,null,null,null,null,null,null,null,null,null,null,null,null,null,null,null,null,null,null,null,null,null,null,null,null,null,null,null,null,null,null,null,null,null,null,null,null,null,null,null,null,null,null,{"$f":"'Language-Currency'!A132","v":"Back to main page"}]
[]
[null,null,null,null,null,null,null,null,null,null,null,null,{"$f":"'MAIN PAGE'!M119","v":"4 pcs. 2-way"},null,null,null,null,null,null,null,null,null,null,null,null,null,null,null,null,null,null,null,{"$f":"'MAIN PAGE'!AG119:AZ119","v":"2 pcs. 2-way"},null,null,null,null,null,null,null,null,null,null,null,null,null,null,null,null,null,null,null,{"$f":"'MAIN PAGE'!BA119","v":"1 pcs. 6-way"}]
[null,null,null,null,null,null,null,null,null,null,null,null,null,null,null,null,null,null,null,null,null,null,null,null,null,null,null,null,null,null,null,null,{"$f":"'MAIN PAGE'!AG120:AZ120","v":"1 pcs. 3-way"}]
[]
[null,null,null,null,null,null,null,null,null,null,null,null,{"$f":"'MAIN PAGE'!$M$122:$AF$122","v":"EUR 33'750"},null,null,null,null,null,null,null,null,null,null,null,null,null,null,null,null,null,null,null,{"$f":"'MAIN PAGE'!$AG$122:$AZ$122","v":"EUR 26'583"},null,null,null,null,null,null,null,null,null,null,null,null,null,null,null,null,null,null,null,{"$f":"'MAIN PAGE'!$BA$122:$BT$122","v":"EUR 18'948"}]
[null,null,null,null,null,null,null,null,null,null,null,null,{"$f":"IFERROR('MAIN PAGE'!$M$123:$AF$123,0)","v":1.7812376302942341},null,null,null,null,null,null,null,null,null,null,null,null,null,null,null,null,null,null,null,{"$f":"IFERROR('MAIN PAGE'!$AG$123:$AZ$123,0)","v":1.4029555350310068},null,null,null,null,null,null,null,null,null,null,null,null,null,null,null,null,null,null,null,{"$f":"IFERROR('MAIN PAGE'!$BA$123:$BT$123,0)","v":1}]
[]
[null,null,null,null,null,null,null,null,null,null,null,null,null,null,null,null,null,null,null,null,null,null,null,null,null,null,null,null,null,null,null,null,null,null,null,null,null,null,null,null,null,null,null,null,null,null,null,null,null,null,null,null,{"$f":"'MAIN PAGE'!BA125:BT125","v":"Belimo 6-way zone valve\nDN15: R3015-..-..-B2\nDN20: R3020-..-..-B2"}]

{"sheet":"Language-Currency","index":2,"n_rows":282,"n_cols":7,"rows_kept":282,"cut":false,"hidden":false,"merged":[[18,1,18,2],[4,1,4,2],[3,1,3,2],[15,1,15,2],[16,1,16,2],[17,1,17,2]]}
[]
[null,"CURRENCY"]
[null,"How to add further currencies?"]
[null,"- Enter the new currency in cells C6 … C12"]
[null,"- Currencies in the cells C6, C7 and C8 may be replaced or deleted"]
[null,null,"EUR"]
[null,null,"€"]
[null,null,"CHF"]
[]
[]
[]
[]
[]
[null,"LANGUAGES"]
[null,"How to add further languages?"]
[null,"- Choose a column D to H"]
[null,"- Enter the language in row 23"]
[null,"- Perform the translation"]
[null,"Translated files should be send to Christian Luchsinger. Translation will be added to the master file."]
["Wahl:",{"$f":"'MAIN PAGE'!FE6","v":"English"}]
[]
[]
["gewählt","Deutsch","English","Nederlands"," "," "," "]
[{"$f":"IF($B$20=$B$23,B24,IF($B$20=$C$23,C24,IF($B$20=$D$23,D24,IF($B$20=$E$23,E24,IF($B$20=$F$23,F24,IF($B$20=$G$23,G24,\"!!!FEHLER!!!\"))))))","v":"Belimo 6-way zone valve"},"6-Weg-Zonenventil von Belimo","Belimo 6-way zone valve","6-weg regelkogelkraan van Belimo"]
[{"$f":"IF($B$20=$B$23,B25,IF($B$20=$C$23,C25,IF($B$20=$D$23,D25,IF($B$20=$E$23,E25,IF($B$20=$F$23,F25,IF($B$20=$G$23,G25,\"!!!FEHLER!!!\"))))))","v":"Currency"},"Währung","Currency","Valuta"]
["Version","Version","Version","Versie"]
["Language","Sprache","Language","Taal"]
["Page","Seite","Page","Pagina"]
["of","von","of","van"]
["Investment costs 4-pipe system","Investitionskosten 4-Leiter-System","Investment costs 4-pipe system","Investeringskosten 4-pijps systeem"]
["Project","Projekt","Project","Project"]
["Version","Version","Version","Versie"]
["Creator","Ersteller","Creator","Maker"]
["Actuator","Antrieb","Actuator","Aandrijving"]
["Valve","Ventil","Valve","Ventiel"]
["open-close","Auf-Zu","open-close","Open-dicht"]
["modulating","stetig","modulating","Modulerend"]
["per actuator","pro Antrieb","per actuator","per aandrijving"]
["Junction box","Anschlussdose","Junction box","Lasdoos"]
["per junction box","pro Anschlussdose","per junction box","per lasdoos"]
["Processing date","Erstellungsdatum","Processing date","Aanmaakdatum"]
["Calculation basis","Berechnungsgrundlage","Calculation basis","Calculatiebasis"]
["Number of heat exchangers (Heating & Cooling)","Anzahl Wärmetauscher (Heizen & Kühlen)","Number of heat exchangers (Heating & Cooling)","Aantal warmtewisselaars (verwarmen & koelen)"]
["Type of installation","Installationsart","Type of installation","Soort installatie"]
["Average distance between control cabinet and junction box","Durchschnittlicher Abstand zwischen Schaltschrank und Anschlussdose","Average distance between control cabinet and junction box","Gemiddelde afstand tussen schakelkast en lasdoos"]
["Cable between data point and junction box","Kabel zwischen Datenpunkt und Anschlussdose","Cable between data point and junction box","Kabel tussen datapunt en lasdoos"]
["-way valve","-Weg Ventil","-way valve","-weg ventiel"]
["per valve","pro Ventil","per valve","per ventiel"]
["Cost of a 2-way valve including actuator","Kosten für 2-Weg Ventil inklusive Antrieb","Cost of a 2-way valve including actuator","Kosten voor 2-weg ventiel inclusief aandrijving"]
["Cost of a 3-way valve including actuator","Kosten für 3-Weg Ventil inklusive Antrieb","Cost of a 3-way valve including actuator","Kosten voor 3-weg ventiel inclusief aandrijving"]
["Cost of a 6-way valve including actuator","Kosten für 6-Weg Ventil inklusive Antrieb","Cost of a 6-way valve including actuator","Kosten voor 6-weg ventiel inclusief aandrijving"]
["Cost of a physical data point","Kosten physikalischer Datenpunkt","Cost of a physical data point","Kosten fysiek datapunt"]
["Cable costs","Kosten Kabel ","Cable costs","Kosten kabel"]
["Cost of a junction box","Kosten Anschlussdose","Cost of a junction box","Kosten lasdoos"]
["Costs","Kosten","Costs","Kosten"]
["Hourly rate installation work","Stundensatz Installationsarbeiten","Hourly rate installation work","Uurtarief installatie-arbeid"]
["piece","Stück","piece","Stuk"]
["pieces","Stück","pieces","Stuk"]
["meters","Meter","meters","Meter"]
["kilometres","Kilometer","kilometres","Kilometer"]
["meter","lfm","meter","Meter"]
["hour","Stunde","hour","Uur"]
["hours","Stunden","hours","Uren"]
["minutes","Minuten","minutes","Minuten"]
["New construction / one-time","Neubau einmalig","New construction / one-time","Nieuwbouw eenmalig"]
["New construction / repetitive","Neubau wiederholend","New construction / repetitive","Nieuwbouw herhaald"]
["Existing construction / one-time","Bestandsbau einmalig","Existing construction / one-time","Bestaande bouw eenmalig"]
["Existing construction / repetitive","Bestandsbau wiederholend","Existing construction / repetitive","Bestaande bouw herhaald"]
["User-defined 1","Benutzerdefiniert 1","User-defined 1","Bepaald door gebruiker 1"]
["User-defined 2","Benutzerdefiniert 2","User-defined 2","Bepaald door gebruiker 2"]
["Estimate of costs","Abschätzung der Kosten","Estimate of costs","Schatting van de kosten"]
["2-way","2-Weg","2-way","2-weg"]
["3-way","3-Weg","3-way","3-weg"]
["6-way","6-Weg","6-way","6-weg"]
["pcs.","Stk.","pcs.","St."]
["Number of valves per heat exchanger","Anzahle Ventile pro Wärmetauscher","Number of valves per heat exchanger","Aantallen ventielen per warmtewisselaar"]
["Overall costs of material and installation","Gesamtkosten für Material und Installation","Overall costs of material and installation","Totale kosten voor materiaal en installatie"]
["Total material costs","Gesamtkosten Material","Total material costs","Totale kosten materiaal"]
["Costs of all valves and actuators","Kosten für alle Ventile und Antriebe","Costs of all valves and actuators","Kosten voor alle ventielen en aandrijvingen"]
["Total number of valves and actuators","Totale Anzahl Ventile und Antriebe","Total number of valves and actuators","Totaal aantal ventielen en aandrijvingen"]
["Number of","Anzahl","Number of","Aantal"]
["Costs of data points, cable, junction boxes","Kosten Datenpunkte, Kabel, Anschlussdosen","Costs of data points, cable, junction boxes","Kosten datapunten, kabel, lasdozen"]
["Number of data points / junction boxes","Anzahl Datenpunkte / Anschlussdosen","Number of data points / junction boxes","Aantal datapunten / lasdozen"]
["Total cable length","Kabellänge total","Total cable length","Kabellengte totaal"]
["Total installation costs","Gesamtkosten Installation","Total installation costs","Totale kosten installatie"]
["Costs of valve installation","Kosten Ventilinstallation","Costs of valve installation","Kosten ventielinstallatie"]
["Effort valve installation","Aufwand Ventilinstallation","Effort valve installation","Werkzaamheden ventielinstallatie"]
["Installation effort","Aufwand Installation","Installation effort","Werkzaamheden installatie"]
["Costs of actuator installation","Kosten Antriebsinstallation","Costs of actuator installation","Kosten Aandrijvingsinstallatie"]
["Effort installation actuator","Aufwand Antriebsmontage","Effort installation actuator","Werkzaamheden aandrijvingsmontage"]
["Effort installation of junction box","Aufwand Anschlussdosenmontage","Effort installation of junction box","Werkzaamheden lasdoosmontage"]
[{"$f":"IF($B$20=$B$23,B92,IF($B$20=$C$23,C92,IF($B$20=$D$23,D92,IF($B$20=$E$23,E92,IF($B$20=$F$23,F92,IF($B$20=$G$23,G92,\"!!!FEHLER!!!\"))))))","v":"Effort cable installation"},"Aufwand Kabelverlegung","Effort cable installation","Werkzaamheden bekabeling"]
["Cable installation","Kabelverlegung","Cable installation","Bekabeling"]
["per linear meter","pro Laufmeter","per linear meter","per meter"]
["This is an estimating tool which considers the named costs. Results are dependent on the accuracy of the input values.","Das Ergebnis stellt lediglich eine Abschätzung bezüglich der genannten Kosten dar. Die Genauigkeit des Resultats hängt massgebend von den eingegebenen Informationen ab. ","This is an estimating tool which considers the named costs. Results are dependent on the accuracy of the input values.","Het resultaat geeft slechts een schatting van de genoemde kosten weer. De nauwkeurigheid van het resultaat is sterk afhankelijk van de ingegeven waarden. "]
["For the calculation of the installation costs the following standard times has been used:","Zur Berechnung der Installationskosten wurden folgende Standardzeiten verwendet:","For the calculation of the installation costs the following standard times has been used:","Ter berekening van de installatiekosten worden de volgende standaardtijden gebruikt:"]
["Installation","Installation","Installation","Installatie"]
["Subject to modifications and amendments.","Änderungen und Ergänzungen sind vorbehalten.","Subject to modifications and amendments.","Wijzigingen en aanvullingen voorbehouden"]
["To exit: ESC-key","Zum Beenden: ESC-Taste","To exit: ESC-key","Beëindigen: ESC-toets"]
["PDF-File will be saved in the same directory as the excel file…","PDF-Datei wird im selben Verzeichnis wie die Excel-Datei gespeichert…","PDF-File will be saved in the same directory as the excel file…","PDF-bestand wordt in dezelfde map opgeslagen als het Excel-bestand…"]
["Display: High level of details","Detailierungsgrad Anzeige: hoch","Display: High level of details","Gedetailleerde weergave: hoog"]
["Display: Middle level of details","Detailierungsgrad Anzeige: mittel","Display: Middle level of details","Gedetailleerde weergave: gemiddeld"]
["Display: Low level of details","Detailierungsgrad Anzeige: tief","Display: Low level of details","Gedetailleerde weergave: laag"]
["Disclaimer / Information","Haftungsausschluss / Information","Disclaimer / Information","Uitsluiting aansprakelijkheid / Informatie"]
["Full screen view","Vollbildansicht","Full screen view","Volledig scherm"]
["Quick reference costs","Schnellübersicht Kosten","Quick reference costs","Sneloverzicht kosten"]
["Print","Drucken","Print","Afdrukken"]
["Create PDF","PDF erstellen","Create PDF","PDF maken"]
["Delete entries","Eingaben löschen","Delete entries","Invoer wissen"]
["Use of example values","Beispielwerte verwenden","Use of example values","Voorbeeldwaarden gebruiken"]
["physical data point","physikalischer Datenpunkt","physical data point","Fysiek datapunt"]
["Cable","Kabel","Cable","Kabel"]
["Control cabinet","Schaltschrank","Control cabinet","Schakelkast"]
["Page up","Nach oben","Page up","Naar boven"]
["Information","Informationen","Information","Informatie"]
["Calculation values (standard times)","Berechnungswerte (Standardzeiten)","Calculation values (standard times)","Rekenwaarden (standaardtijden)"]
["Definition of the installation time depending on valve type","Definition der Installationsdauer nach einzubauenden Ventiltyp","Definition of the installation time depending on valve type","Definitie van de installatieduur per in te bouwen ventieltype"]
["Definition as a function of building type is possible","Gebäudetyp abhängige Definition möglich","Definition as a function of building type is possible","Gebouwtype afhankelijke definitie mogelijk"]
["Expenditure of time in hours","Aufwand in Stunden","Expenditure of time in hours","Werkzaamheden in uren"]
["Installation object","Installationsobjekt","Installation object","Installatie object"]
["This calculation tool considers the following costs","Dieses Berechnungsprogramm berücksichtigt folgende Kosten","This calculation tool considers the following costs","Dit rekenprogramma neemt de volgende kosten mee"]
["Material costs","Materialkosten","Material costs","Materiaalkosten"]
["Junction box","Anschlussdose","Junction box","Lasdoos"]
["Labour costs","Arbeitskosten","Labour costs","Arbeidskosten"]
["Installation of valves","Installation der Ventile","Installation of valves","Installatie van de ventielen"]
["Installation of actuators","Installation der Antriebe","Installation of actuators","Installatie van de aandrijvingen"]
["Labours costs for cable installation between data points and junction boxes","Arbeitskosten für Kabelverlegung zwischen Datenpunkten und Anschlussdosen","Labours costs for cable installation between data points and junction boxes","Arbeidskosten voor bekabeling tussen datapunten en lasdozen"]
["Installation of junction boxes","Anschlussdosenmontage","Installation of junction boxes","Lasdozenmontage"]
["Jump to:","Springen zu:","Jump to:","Ga naar:"]
["Reference","Hinweis","Reference","Aanwijzing"]
["Data points for a possible feedback signal are not considered.","Datenpunkte für eventuelles Rückmeldesignal sind nicht berücksichtigt.","Data points for a possible feedback signal are not considered.","Datapunten voor een eventueel terugmeldsignaal zijn niet meegenomen."]
["Back to main page","Zurück zur Hauptseite","Back to main page","Terug naar hoofdpagina"]
["Values for example calculation","Werte für Beispielsberechnung","Values for example calculation","Waarden voor voorbeeldberekening"]
["Please select again!","Bitte neu wählen!","Please select again!","Opnieuw selecteren a.u.b.!"]
[0]
[0]
[0]
[0]
[0]
[0]
[0]
[0]
[0]
[0]
[0]
[0]
[0]
[0]
[0]
[0]
[0]
[0]
[0]
[0]
[0]
[{"$f":"IF($B$20=$B$23,B156,IF($B$20=$C$23,C156,IF($B$20=$D$23,D156,IF($B$20=$E$23,E156,IF($B$20=$F$23,F156,IF($B$20=$G$23,G156,\"!!!FEHLER!!!\"))))))","v":0}]
[0]
[0]
[0]
[0]
[0]
[0]
[0]
[0]
[0]
[0]
[0]
[0]
[0]
[0]
[0]
[0]
[0]
[0]
[0]
[0]
[0]
[0]
[0]
[0]
[0]
[0]
[0]
[0]
[0]
[0]
[0]
[0]
[0]
[0]
[0]
[0]
[0]
[0]
[0]
[0]
[0]
[0]
[0]
[0]
[0]
[0]
[0]
[0]
[0]
[0]
[0]
[0]
[0]
[0]
[0]
[0]
[0]
[0]
[0]
[0]
[0]
[0]
[0]
[{"$f":"IF($B$20=$B$23,B220,IF($B$20=$C$23,C220,IF($B$20=$D$23,D220,IF($B$20=$E$23,E220,IF($B$20=$F$23,F220,IF($B$20=$G$23,G220,\"!!!FEHLER!!!\"))))))","v":0}]
[0]
[0]
[0]
[0]
[0]
[0]
[0]
[0]
[0]
[0]
[0]
[0]
[0]
[0]
[0]
[0]
[0]
[0]
[0]
[0]
[0]
[0]
[0]
[0]
[0]
[0]
[0]
[0]
[0]
[0]
[0]
[0]
[0]
[0]
[0]
[0]
[0]
[0]
[0]
[0]
[0]
[0]
[0]
[0]
[0]
[0]
[0]
[0]
[0]
[0]
[0]
[0]
[0]
[0]
[0]
[0]
[0]
[0]
[0]
[0]
[0]
[0]

{"sheet":"Calculation values","index":3,"n_rows":36,"n_cols":113,"rows_kept":36,"cut":false,"hidden":false,"merged":[[9,33,9,98],[10,1,10,16],[10,17,10,32],[2,1,2,98],[3,1,3,98],[6,1,6,79],[5,1,5,79],[10,88,10,98],[10,55,10,65],[10,44,10,54],[10,33,10,43],[10,66,10,76],[18,106,18,111],[13,77,13,87],[14,77,14,87],[15,77,15,87],[16,77,16,87],[15,88,15,98],[16,88,16,98],[11,88,11,98],[12,88,12,98],[13,88,13,98],[14,88,14,98],[10,77,10,87],[11,77,11,87],[12,77,12,87],[12,1,12,32],[12,33,12,43],[12,44,12,54],[12,55,12,65],[12,66,12,76],[11,1,11,32],[11,33,11,43],[11,44,11,54],[11,55,11,65],[11,66,11,76],[16,55,16,65],[15,66,15,76],[14,1,14,32],[14,33,14,43],[14,44,14,54],[14,55,14,65],[14,66,14,76],[25,1,25,54],[25,56,25,66],[25,68,25,78],[13,1,13,32],[13,33,13,43],[13,44,13,54],[13,55,13,65],[16,66,16,76],[15,1,15,32],[15,33,15,43],[15,44,15,54],[15,55,15,65],[16,1,16,32],[16,33,16,43],[16,44,16,54],[13,66,13,76],[28,1,28,54],[28,56,28,66],[35,1,35,54],[35,56,35,66],[35,68,35,78],[32,1,32,54],[32,56,32,66],[32,68,32,78],[33,1,33,54],[33,56,33,66],[33,68,33,78],[28,68,28,78],[29,1,29,54],[29,68,29,78],[29,56,29,66],[23,1,23,54],[21,1,21,79],[23,56,23,66],[23,68,23,78],[34,1,34,54],[34,56,34,66],[34,68,34,78],[30,1,30,54],[30,56,30,66],[30,68,30,78],[31,1,31,54],[31,56,31,66],[31,68,31,78],[27,1,27,54],[27,56,27,66],[27,68,27,78]]}
[]
[null,null,{"$f":"'MAIN PAGE'!C4","v":"Version 1.0.1"}]
[null,{"$f":"'MAIN PAGE'!B5:CA5","v":"  Belimo Savings Estimator"},null,null,null,null,null,null,null,null,null,null,null,null,null,null,null,null,null,null,null,null,null,null,null,null,null,null,null,null,null,null,null,null,null,null,null,null,null,null,null,null,null,null,null,null,null,null,null,null,null,null,null,null,null,null,null,null,null,null,null,null,null,null,null,null,null,null,null,null,null,null,null,null,null,null,null,null,null,null,null,null,null,null,null,null,null,null,null,null,null,null,null,null,null,null,null,null,null,null,null,null,null,"Zellschutz"]
[null,{"$f":"'MAIN PAGE'!B6:CA6","v":"  Investment costs 4-pipe system"},null,null,null,null,null,null,null,null,null,null,null,null,null,null,null,null,null,null,null,null,null,null,null,null,null,null,null,null,null,null,null,null,null,null,null,null,null,null,null,null,null,null,null,null,null,null,null,null,null,null,null,null,null,null,null,null,null,null,null,null,null,null,null,null,null,null,null,null,null,null,null,null,null,null,null,null,null,null,null,null,null,null,null,null,null,null,null,null,null,null,null,null,null,null,null,null,null,null,null,null,null,"Formate"]
[]
[null,{"$f":"'Language-Currency'!A116","v":"Calculation values (standard times)"},null,null,null,null,null,null,null,null,null,null,null,null,null,null,null,null,null,null,null,null,null,null,null,null,null,null,null,null,null,null,null,null,null,null,null,null,null,null,null,null,null,null,null,null,null,null,null,null,null,null,null,null,null,null,null,null,null,null,null,null,null,null,null,null,null,null,null,null,null,null,null,null,null,null,null,null,null,null,null,null,null,null,null,null,null,null,null,null,null,null,null,null,null,null,null,null,null,null,null,null,null,null,"Check Werte bei Wahl vorhanden?"]
[null,{"$f":"CONCATENATE(\"▪ \",'Language-Currency'!A117)","v":"▪ Definition of the installation time depending on valve type"}]
[null,{"$f":"CONCATENATE(\"▪ \",'Language-Currency'!A118)","v":"▪ Definition as a function of building type is possible"}]
[]
[null,null,null,null,null,null,null,null,null,null,null,null,null,null,null,null,null,null,null,null,null,null,null,null,null,null,null,null,null,null,null,null,null,{"$f":"'Language-Currency'!A119","v":"Expenditure of time in hours"}]
[null,{"$f":"'Language-Currency'!A44","v":"Type of installation"},null,null,null,null,null,null,null,null,null,null,null,null,null,null,null,{"$f":"CONCATENATE('Language-Currency'!A120,\" \")","v":"Installation object "},null,null,null,null,null,null,null,null,null,null,null,null,null,null,null,{"$f":"CONCATENATE(\"2\",'Language-Currency'!A47)","v":"2-way valve"},null,null,null,null,null,null,null,null,null,null,{"$f":"CONCATENATE(\"3\",'Language-Currency'!A47)","v":"3-way valve"},null,null,null,null,null,null,null,null,null,null,{"$f":"CONCATENATE(\"6\",'Language-Currency'!A47)","v":"6-way valve"},null,null,null,null,null,null,null,null,null,null,{"$f":"'Language-Currency'!A34","v":"Actuator"},null,null,null,null,null,null,null,null,null,null,{"$f":"'Language-Currency'!A39","v":"Junction box"},null,null,null,null,null,null,null,null,null,null,{"$f":"CONCATENATE('Language-Currency'!A93,\" \",'Language-Currency'!A94)","v":"Cable installation per linear meter"},null,null,null,null,null,null,null,null,null,null,null,null,null,null,null,null,null,"2-Weg","3-Weg","6-Weg","Antrieb","Anschlussdose","Kabelverlegung pro lfm"]
[null,{"$f":"'Language-Currency'!A65","v":"New construction / one-time"},null,null,null,null,null,null,null,null,null,null,null,null,null,null,null,null,null,null,null,null,null,null,null,null,null,null,null,null,null,null,null,0.95,null,null,null,null,null,null,null,null,null,null,1.22,null,null,null,null,null,null,null,null,null,null,2.44,null,null,null,null,null,null,null,null,null,null,7.0000000000000007E-2,null,null,null,null,null,null,null,null,null,null,0.28999999999999998,null,null,null,null,null,null,null,null,null,null,5.0000000000000001E-3,null,null,null,null,null,null,null,null,null,null,null,null,null,null,null,{"$f":"IF('MAIN PAGE'!$BE$18='Calculation values'!B12,1,0)","v":0},null,{"$f":"DA12*AH12","v":0},{"$f":"DA12*AS12","v":0},{"$f":"DA12*BD12","v":0},{"$f":"DA12*BO12","v":0},{"$f":"DA12*BZ12","v":0},{"$f":"DA12*CK12","v":0}]
[null,{"$f":"'Language-Currency'!A66","v":"New construction / repetitive"},null,null,null,null,null,null,null,null,null,null,null,null,null,null,null,null,null,null,null,null,null,null,null,null,null,null,null,null,null,null,null,0.85,null,null,null,null,null,null,null,null,null,null,1.1000000000000001,null,null,null,null,null,null,null,null,null,null,2.2200000000000002,null,null,null,null,null,null,null,null,null,null,7.0000000000000007E-2,null,null,null,null,null,null,null,null,null,null,0.26,null,null,null,null,null,null,null,null,null,null,5.0000000000000001E-3,null,null,null,null,null,null,null,null,null,null,null,null,null,null,null,{"$f":"IF('MAIN PAGE'!$BE$18='Calculation values'!B13,1,0)","v":0},null,0,0,0,0,0,0]
[null,{"$f":"'Language-Currency'!A67","v":"Existing construction / one-time"},null,null,null,null,null,null,null,null,null,null,null,null,null,null,null,null,null,null,null,null,null,null,null,null,null,null,null,null,null,null,null,1.26,null,null,null,null,null,null,null,null,null,null,1.62,null,null,null,null,null,null,null,null,null,null,3.24,null,null,null,null,null,null,null,null,null,null,7.0000000000000007E-2,null,null,null,null,null,null,null,null,null,null,0.32,null,null,null,null,null,null,null,null,null,null,5.0000000000000001E-3,null,null,null,null,null,null,null,null,null,null,null,null,null,null,null,{"$f":"IF('MAIN PAGE'!$BE$18='Calculation values'!B14,1,0)","v":1},null,1.26,1.62,3.24,7.0000000000000007E-2,0.32,5.0000000000000001E-3]
[null,{"$f":"'Language-Currency'!A68","v":"Existing construction / repetitive"},null,null,null,null,null,null,null,null,null,null,null,null,null,null,null,null,null,null,null,null,null,null,null,null,null,null,null,null,null,null,null,1.06,null,null,null,null,null,null,null,null,null,null,1.37,null,null,null,null,null,null,null,null,null,null,2.76,null,null,null,null,null,null,null,null,null,null,7.0000000000000007E-2,null,null,null,null,null,null,null,null,null,null,0.3,null,null,null,null,null,null,null,null,null,null,5.0000000000000001E-3,null,null,null,null,null,null,null,null,null,null,null,null,null,null,null,{"$f":"IF('MAIN PAGE'!$BE$18='Calculation values'!B15,1,0)","v":0},null,0,0,0,0,0,0]
[null,{"$f":"'Language-Currency'!A69","v":"User-defined 1"},null,null,null,null,null,null,null,null,null,null,null,null,null,null,null,null,null,null,null,null,null,null,null,null,null,null,null,null,null,null,null,null,null,null,null,null,null,null,null,null,null,null,null,null,null,null,null,null,null,null,null,null,null,null,null,null,null,null,null,null,null,null,null,null,null,null,null,null,null,null,null,null,null,null,null,null,null,null,null,null,null,null,null,null,null,null,null,null,null,null,null,null,null,null,null,null,null,null,null,null,null,null,{"$f":"IF('MAIN PAGE'!$BE$18='Calculation values'!B16,1,0)","v":0},null,0,0,0,0,0,0]
[null,{"$f":"'Language-Currency'!A70","v":"User-defined 2"},null,null,null,null,null,null,null,null,null,null,null,null,null,null,null,null,null,null,null,null,null,null,null,null,null,null,null,null,null,null,null,null,null,null,null,null,null,null,null,null,null,null,null,null,null,null,null,null,null,null,null,null,null,null,null,null,null,null,null,null,null,null,null,null,null,null,null,null,null,null,null,null,null,null,null,null,null,null,null,null,null,null,null,null,null,null,null,null,null,null,null,null,null,null,null,null,null,null,null,null,null,null,{"$f":"IF('MAIN PAGE'!$BE$18='Calculation values'!B17,1,0)","v":0},null,0,0,0,0,0,0]
[]
[null,null,null,null,null,null,null,null,null,null,null,null,null,null,null,null,null,null,null,null,null,null,null,null,null,null,null,null,null,null,null,null,null,null,null,null,null,null,null,null,null,null,null,null,null,null,null,null,null,null,null,null,null,null,null,null,null,null,null,null,null,null,null,null,null,null,null,null,null,null,null,null,null,null,null,null,null,null,null,null,null,null,null,null,null,null,null,null,null,null,null,null,null,null,null,null,null,null,null,null,null,null,null,null,null,null,"Wahl für Berechnung"]
[null,null,null,null,null,null,null,null,null,null,null,null,null,null,null,null,null,null,null,null,null,null,null,null,null,null,null,null,null,null,null,null,null,null,null,null,null,null,null,null,null,null,null,null,null,null,null,null,null,null,null,null,null,null,null,null,null,null,null,null,null,null,null,null,null,null,null,null,null,null,null,null,null,null,null,null,null,null,null,null,null,null,null,null,null,null,null,null,null,null,null,null,null,null,null,null,null,null,null,null,null,null,null,null,null,null,"2-Weg","3-Weg","6-Weg","Antrieb","Anschlussdose","Kabelverlegung pro lfm"]
[null,null,null,null,null,null,null,null,null,null,null,null,null,null,null,null,null,null,null,null,null,null,null,null,null,null,null,null,null,null,null,null,null,null,null,null,null,null,null,null,null,null,null,null,null,null,null,null,null,null,null,null,null,null,null,null,null,null,null,null,null,null,null,null,null,null,null,null,null,null,null,null,null,null,null,null,null,null,null,null,null,null,null,null,null,null,null,null,null,null,null,null,null,null,null,null,null,null,null,null,null,null,null,null,null,null,{"$f":"SUM(DC12:DC17)","v":1.26},1.62,3.24,7.0000000000000007E-2,0.32,{"$f":"SUM(DH12:DH17)","v":5.0000000000000001E-3}]
[null,{"$f":"'Language-Currency'!A133","v":"Values for example calculation"},null,null,null,null,null,null,null,null,null,null,null,null,null,null,null,null,null,null,null,null,null,null,null,null,null,null,null,null,null,null,null,null,null,null,null,null,null,null,null,null,null,null,null,null,null,null,null,null,null,null,null,null,null,null,null,null,null,null,null,null,null,null,null,null,null,null,null,null,null,null,null,null,null,null,null,null,null,null,null,null,null,null,null,null,null,null,null,null,null,null,null,null,null,null,null,null,null,null,null,null,null,null,null,null,{"$f":"60/1*DC21","v":75.599999999999994},97.2,194.4,4.2,19.2,0.3,"Minuten"]
[]
[null,{"$f":"'Language-Currency'!A25","v":"Currency"},null,null,null,null,null,null,null,null,null,null,null,null,null,null,null,null,null,null,null,null,null,null,null,null,null,null,null,null,null,null,null,null,null,null,null,null,null,null,null,null,null,null,null,null,null,null,null,null,null,null,null,null,null,null,"EUR",null,null,null,null,null,null,null,null,null,null,null,"-"]
[]
[null,{"$f":"'Language-Currency'!A43","v":"Number of heat exchangers (Heating & Cooling)"},null,null,null,null,null,null,null,null,null,null,null,null,null,null,null,null,null,null,null,null,null,null,null,null,null,null,null,null,null,null,null,null,null,null,null,null,null,null,null,null,null,null,null,null,null,null,null,null,null,null,null,null,null,null,50,null,null,null,null,null,null,null,null,null,null,null,{"$f":"'Language-Currency'!A57","v":"piece"}]
[]
[null,{"$f":"'Language-Currency'!A45","v":"Average distance between control cabinet and junction box"},null,null,null,null,null,null,null,null,null,null,null,null,null,null,null,null,null,null,null,null,null,null,null,null,null,null,null,null,null,null,null,null,null,null,null,null,null,null,null,null,null,null,null,null,null,null,null,null,null,null,null,null,null,null,25,null,null,null,null,null,null,null,null,null,null,null,{"$f":"'Language-Currency'!A59","v":"meters"}]
[null,{"$f":"'MAIN PAGE'!B21","v":"Cost of a 2-way valve including actuator (modulating)"},null,null,null,null,null,null,null,null,null,null,null,null,null,null,null,null,null,null,null,null,null,null,null,null,null,null,null,null,null,null,null,null,null,null,null,null,null,null,null,null,null,null,null,null,null,null,null,null,null,null,null,null,null,null,36,null,null,null,null,null,null,null,null,null,null,null,{"$f":"CONCATENATE('MAIN PAGE'!BE2,\"/\",'Language-Currency'!A57)","v":"EUR/piece"}]
[null,{"$f":"'MAIN PAGE'!B22","v":"Cost of a 2-way valve including actuator (open-close)"},null,null,null,null,null,null,null,null,null,null,null,null,null,null,null,null,null,null,null,null,null,null,null,null,null,null,null,null,null,null,null,null,null,null,null,null,null,null,null,null,null,null,null,null,null,null,null,null,null,null,null,null,null,null,32,null,null,null,null,null,null,null,null,null,null,null,{"$f":"BQ29","v":"EUR/piece"}]
[null,{"$f":"'Language-Currency'!A50","v":"Cost of a 3-way valve including actuator"},null,null,null,null,null,null,null,null,null,null,null,null,null,null,null,null,null,null,null,null,null,null,null,null,null,null,null,null,null,null,null,null,null,null,null,null,null,null,null,null,null,null,null,null,null,null,null,null,null,null,null,null,null,null,41,null,null,null,null,null,null,null,null,null,null,null,{"$f":"BQ29","v":"EUR/piece"}]
[null,{"$f":"'Language-Currency'!A51","v":"Cost of a 6-way valve including actuator"},null,null,null,null,null,null,null,null,null,null,null,null,null,null,null,null,null,null,null,null,null,null,null,null,null,null,null,null,null,null,null,null,null,null,null,null,null,null,null,null,null,null,null,null,null,null,null,null,null,null,null,null,null,null,165,null,null,null,null,null,null,null,null,null,null,null,{"$f":"BQ29","v":"EUR/piece"}]
[null,{"$f":"'Language-Currency'!A52","v":"Cost of a physical data point"},null,null,null,null,null,null,null,null,null,null,null,null,null,null,null,null,null,null,null,null,null,null,null,null,null,null,null,null,null,null,null,null,null,null,null,null,null,null,null,null,null,null,null,null,null,null,null,null,null,null,null,null,null,null,50,null,null,null,null,null,null,null,null,null,null,null,{"$f":"BQ29","v":"EUR/piece"}]
[null,{"$f":"'Language-Currency'!A53","v":"Cable costs"},null,null,null,null,null,null,null,null,null,null,null,null,null,null,null,null,null,null,null,null,null,null,null,null,null,null,null,null,null,null,null,null,null,null,null,null,null,null,null,null,null,null,null,null,null,null,null,null,null,null,null,null,null,null,0.19,null,null,null,null,null,null,null,null,null,null,null,{"$f":"CONCATENATE('MAIN PAGE'!BE2,\"/\",'Language-Currency'!A61)","v":"EUR/meter"}]
[null,{"$f":"'Language-Currency'!A54","v":"Cost of a junction box"},null,null,null,null,null,null,null,null,null,null,null,null,null,null,null,null,null,null,null,null,null,null,null,null,null,null,null,null,null,null,null,null,null,null,null,null,null,null,null,null,null,null,null,null,null,null,null,null,null,null,null,null,null,null,9,null,null,null,null,null,null,null,null,null,null,null,{"$f":"BQ29","v":"EUR/piece"}]
[null,{"$f":"'Language-Currency'!A56","v":"Hourly rate installation work"},null,null,null,null,null,null,null,null,null,null,null,null,null,null,null,null,null,null,null,null,null,null,null,null,null,null,null,null,null,null,null,null,null,null,null,null,null,null,null,null,null,null,null,null,null,null,null,null,null,null,null,null,null,null,40,null,null,null,null,null,null,null,null,null,null,null,{"$f":"CONCATENATE('MAIN PAGE'!BE2,\"/\",'Language-Currency'!A62)","v":"EUR/hour"}]

{"sheet":"Listenwerte","index":4,"n_rows":14,"n_cols":9,"rows_kept":14,"cut":false,"hidden":true,"merged":[[3,7,3,8]]}
[]
["Version","1.0.1"]
[]
["Gebäudetyp","Detailierungsgrad Anzeige","Sprache","YES/NO",null,null,null,"Überprüfung Sprache Auswahlbox 'Gebäudetyp'"]
[{"$f":"'Language-Currency'!A65","v":"New construction / one-time"},{"$f":"'Language-Currency'!A101","v":"Display: High level of details"},{"$f":"'Language-Currency'!B23","v":"Deutsch"},"Y",null,null,null,{"$f":"'MAIN PAGE'!$BE$18","v":"Existing construction / one-time"},{"$f":"IF(A5=H5,1,0)","v":0}]
[{"$f":"'Language-Currency'!A66","v":"New construction / repetitive"},{"$f":"'Language-Currency'!A102","v":"Display: Middle level of details"},{"$f":"'Language-Currency'!C23","v":"English"},"N",null,null,null,{"$f":"'MAIN PAGE'!$BE$18","v":"Existing construction / one-time"},{"$f":"IF(A6=H6,1,0)","v":0}]
[{"$f":"'Language-Currency'!A67","v":"Existing construction / one-time"},{"$f":"'Language-Currency'!A103","v":"Display: Low level of details"},{"$f":"'Language-Currency'!D23","v":"Nederlands"},null,null,null,null,{"$f":"'MAIN PAGE'!$BE$18","v":"Existing construction / one-time"},1]
[{"$f":"'Language-Currency'!A68","v":"Existing construction / repetitive"},null,{"$f":"'Language-Currency'!E23","v":" "},null,null,null,null,{"$f":"'MAIN PAGE'!$BE$18","v":"Existing construction / one-time"},0]
[{"$f":"'Language-Currency'!A69","v":"User-defined 1"},null,{"$f":"'Language-Currency'!F23","v":" "},null,null,null,null,{"$f":"'MAIN PAGE'!$BE$18","v":"Existing construction / one-time"},0]
[{"$f":"'Language-Currency'!A70","v":"User-defined 2"},null,{"$f":"'Language-Currency'!G23","v":" "},null,null,null,null,{"$f":"'MAIN PAGE'!$BE$18","v":"Existing construction / one-time"},0]
[]
[null,null,null,null,null,null,null,null,{"$f":"SUM(I5:I10)","v":1}]
[null,null,null,null,null,null,null,null,"1 = OK"]
[null,null,null,null,null,null,null,null,"0 = Meldung 'neu wählen'"]

{"sheet":"Info","index":5,"n_rows":75,"n_cols":37,"rows_kept":75,"cut":false,"hidden":false,"merged":[[15,23,18,34],[6,36,7,40],[62,1,62,34],[1,1,1,34],[2,1,2,34],[19,1,19,34],[40,1,40,34],[6,30,7,33],[10,30,11,33],[8,30,8,33],[9,30,9,33]]}
[null,null,{"$f":"'MAIN PAGE'!C4","v":"Version 1.0.1"}]
[null,{"$f":"'MAIN PAGE'!B5:CA5","v":"  Belimo Savings Estimator"}]
[null,{"$f":"'MAIN PAGE'!B6:CA6","v":"  Investment costs 4-pipe system"}]
[]
[null,{"$f":"CONCATENATE('Language-Currency'!A121,\":\")","v":"This calculation tool considers the following costs:"}]
[]
[null,null,{"$f":"CONCATENATE(\"● \",'Language-Currency'!A122)","v":"● Material costs"},null,null,null,null,null,null,null,null,null,null,null,null,null,null,null,null,null,null,null,null,null,null,null,null,null,{"$f":"'Language-Currency'!A129","v":"Jump to:"},null,{"$f":"'MAIN PAGE'!AL32","v":"4 pcs. 2-way"},null,null,null,null,null,{"$f":"'Language-Currency'!A132","v":"Back to main page"}]
[null,null,null,{"$f":"CONCATENATE(\"○ \",'Language-Currency'!A35)","v":"○ Valve"}]
[null,null,null,{"$f":"CONCATENATE(\"○ \",'Language-Currency'!A34)","v":"○ Actuator"},null,null,null,null,null,null,null,null,null,null,null,null,null,null,null,null,null,null,null,null,null,null,null,null,null,null,{"$f":"'MAIN PAGE'!AZ32","v":"2 pcs. 2-way"}]
[null,null,null,{"$f":"CONCATENATE(\"○ \",'Language-Currency'!A111)","v":"○ physical data point"},null,null,null,null,null,null,null,null,null,null,null,null,null,null,null,null,null,null,null,null,null,null,null,null,null,null,{"$f":"'MAIN PAGE'!AZ33","v":"1 pcs. 3-way"}]
[null,null,null,{"$f":"CONCATENATE(\"○ \",'Language-Currency'!A46)","v":"○ Cable between data point and junction box"},null,null,null,null,null,null,null,null,null,null,null,null,null,null,null,null,null,null,null,null,null,null,null,null,null,null,{"$f":"'MAIN PAGE'!BN32","v":"1 pcs. 6-way"}]
[null,null,null,{"$f":"CONCATENATE(\"○ \",'Language-Currency'!A123)","v":"○ Junction box"}]
[]
[null,null,{"$f":"CONCATENATE(\"● \",'Language-Currency'!A124)","v":"● Labour costs"}]
[null,null,null,{"$f":"CONCATENATE(\"○ \",'Language-Currency'!A125)","v":"○ Installation of valves"},null,null,null,null,null,null,null,null,null,null,null,null,null,null,null,null,null,null,null,{"$f":"'Language-Currency'!A130","v":"Reference"}]
[null,null,null,{"$f":"CONCATENATE(\"○ \",'Language-Currency'!A126)","v":"○ Installation of actuators"},null,null,null,null,null,null,null,null,null,null,null,null,null,null,null,null,null,null,null,{"$f":"'Language-Currency'!A131","v":"Data points for a possible feedback signal are not considered."}]
[null,null,null,{"$f":"CONCATENATE(\"○ \",'Language-Currency'!A127)","v":"○ Labours costs for cable installation between data points and junction boxes"}]
[null,null,null,{"$f":"CONCATENATE(\"○ \",'Language-Currency'!A128)","v":"○ Installation of junction boxes"}]
[]
[null,{"$f":"'MAIN PAGE'!AL32","v":"4 pcs. 2-way"},null,null,null,null,null,null,null,null,null,null,null,null,null,null,null,null,null,null,null,null,null,null,null,null,null,null,null,null,null,null,null,null,null,null,{"$f":"'Language-Currency'!A114","v":"Page up"}]
[]
[]
[]
[null,null,{"$f":"'Language-Currency'!A111","v":"physical data point"},null,null,null,null,null,null,null,null,null,{"$f":"'Language-Currency'!A112","v":"Cable"},null,null,null,null,null,null,null,{"$f":"'Language-Currency'!A39","v":"Junction box"}]
[]
[]
[]
[null,null,null,null,null,null,null,null,null,null,null,null,null,null,null,null,null,null,null,null,null,null,null,null,null,null,null,null,null,null,null,{"$f":"'Language-Currency'!A34","v":"Actuator"}]
[]
[]
[]
[]
[]
[null,null,null,null,null,null,null,null,null,null,null,null,null,null,null,null,null,null,null,null,null,null,null,null,null,null,null,null,null,null,null,{"$f":"CONCATENATE(\"2\",'Language-Currency'!A47,\" (\",'Language-Currency'!A36,\")\")","v":"2-way valve (open-close)"}]
[]
[null,null,null,null,null,null,null,null,null,null,null,null,null,null,null,null,null,null,null,null,null,null,null,null,null,null,null,null,null,null,null,{"$f":"CONCATENATE(\"2\",'Language-Currency'!A47,\" (\",'Language-Currency'!A37,\")\")","v":"2-way valve (modulating)"}]
[]
[]
[null,null,null,{"$f":"'Language-Currency'!A113","v":"Control cabinet"}]
[]
[null,{"$f":"CONCATENATE('MAIN PAGE'!AZ32,\" + \",'MAIN PAGE'!AZ33)","v":"2 pcs. 2-way + 1 pcs. 3-way"},null,null,null,null,null,null,null,null,null,null,null,null,null,null,null,null,null,null,null,null,null,null,null,null,null,null,null,null,null,null,null,null,null,null,{"$f":"'Language-Currency'!A114","v":"Page up"}]
[]
[]
[]
[]
[null,null,null,null,null,null,null,null,null,null,null,null,null,null,null,null,null,null,null,null,null,null,null,null,null,null,null,null,null,null,null,{"$f":"CONCATENATE(\"3\",'Language-Currency'!A47)","v":"3-way valve"}]
[]
[]
[null,null,{"$f":"'Language-Currency'!A111","v":"physical data point"},null,null,null,null,null,null,null,null,null,{"$f":"'Language-Currency'!A112","v":"Cable"},null,null,null,null,null,null,null,{"$f":"'Language-Currency'!A39","v":"Junction box"},null,null,null,null,null,null,null,null,null,null,{"$f":"'Language-Currency'!A34","v":"Actuator"}]
[]
[]
[]
[]
[]
[]
[null,null,null,null,null,null,null,null,null,null,null,null,null,null,null,null,null,null,null,null,null,null,null,null,null,null,null,null,null,null,null,{"$f":"CONCATENATE(\"2\",'Language-Currency'!A47,\" (\",'Language-Currency'!A37,\")\")","v":"2-way valve (modulating)"}]
[]
[]
[]
[]
[null,null,null,{"$f":"'Language-Currency'!A113","v":"Control cabinet"}]
[]
[null,{"$f":"'MAIN PAGE'!BN32","v":"1 pcs. 6-way"},null,null,null,null,null,null,null,null,null,null,null,null,null,null,null,null,null,null,null,null,null,null,null,null,null,null,null,null,null,null,null,null,null,null,{"$f":"'Language-Currency'!A114","v":"Page up"}]
[]
[]
[]
[]
[]
[]
[null,null,{"$f":"'Language-Currency'!A111","v":"physical data point"},null,null,null,null,null,null,null,null,null,{"$f":"'Language-Currency'!A112","v":"Cable"},null,null,null,null,null,null,null,{"$f":"'Language-Currency'!A39","v":"Junction box"},null,null,null,null,null,null,null,null,null,null,{"$f":"CONCATENATE(\"6\",'Language-Currency'!A47)","v":"6-way valve"}]
[]
[]
[]
[]
[null,null,null,null,null,null,null,null,null,null,null,null,null,null,null,null,null,null,null,null,null,null,null,null,null,null,null,null,null,null,null,{"$f":"'Language-Currency'!A34","v":"Actuator"}]